Workbook

Sheet Table 1
A1: ○○△△マンション
A2: ⻑期修繕計画作成・修繕積⽴⾦算出サービス
A3: ■ 本サービスについて マンション管理組合の皆様が現在の⻑期修繕計画や修繕積⽴⾦の額を⾒直しする際やその内容が適切かチェックする際に、⽐較検討の⽬安（セカンドオピニオン）としてご利⽤いただけるよう、概略の 「⻑期修繕計画」の作成とこれに基づく「修繕積⽴⾦の額」を算出するサービスです。 ■ 本サービスの利⽤例 １） 現在の⻑期修繕計画の内容や修繕積⽴⾦の額が適切かチェックしたい。 ２） 依頼した専⾨家から提出された⻑期修繕計画の内容などが適切かチェックしたい。 ３） ⻑期修繕計画の⾒直しと修繕積⽴⾦の額の変更の検討を総会に諮る際の参考資料としたい。 ４） ⻑期修繕計画を初めて作成するので、将来の概算の⼯事費を把握したい。 なお、正式な⻑期修繕計画の作成・⾒直しは、必ず専⾨家に依頼してください。 ■ ご利⽤にあたっての留意事項 １） 対象とするマンションは、中⾼層、住宅専⽤の分譲マンションです。複合⽤途型マンションについては、店舗・事務所等の規模が⽐較的⼩さなものは対応が可能です。 なお、超⾼層マンション、リゾートマンション、社宅、賃貸マンション等は対応できません。 ２） 標準モデルとして、６階建て、30⼾、平均専有⾯積75㎡のファミリータイプのマンションを想定しています。マンションの規模などが標準モデルと異なる場合は、概算の参考値となります。 ３） 調査・診断を⾏っておりませんので、建物・設備の個別性（新築時の施⼯程度、経年劣化の進⾏状況等）は考慮していません。 ４） 推定修繕⼯事費については、過去のデータを基に設定したので、将来の物価変動等は考慮していません。また、単価は、⾸都圏を対象に設定したもので、地域等による差異は考慮していません。
A4: 作 成 ⽇︓2000年0⽉0⽇ 処理番号︓0000000000 公益財団法⼈マンション管理センター
A7: （様式第１号） マンションの建物・設備の概要等
C8: 作成日／2022年7月1日
A9: -1 | B9: 敷地、建物の概要
B10: マンション名 | C10: Aマンション
B11: 管理組合名 | C11: Aマンション管理組合
B12: 理事長名 | C12: 理事長
B13: 管理者等名
B14: 所在地 | C14: 東京都千代田区
B15: 敷地面積 | C15: 900.00㎡ 権利関係（□所有権・□借地権・□地上権）
B16: 建築面積（建蔽率） | C16: 450.00㎡（現行 ％）
B17: 延べ面積（容積率） | C17: ㎡（現行 ％）
B18: 専有面積の合計 | C18: 3,375.00㎡ ／タイプ別専有面積：別表
B19: 構造 | C19: SRC造
B20: 階数／棟数 | C20: 地上9階地下 階／1棟
B21: 住戸数 | C21: 住戸45戸 、店舗等0区画
B22: 竣工日 | C22: 1958年09月30日（経年64年）
A23: -2 | B23: 設備、附属施設の概要
B24: 給・排水設備 | C24: ■給水ポンプ、■排水ポンプ、■受水槽、□高置水槽、□浄化槽
B25: ガス設備 | C25: ■ガス、□セントラル給湯
B26: 空調・換気設備 | C26: ■空気調和機、■換気
B27: 電力設備 | C27: □（自家用）受変電室、■避雷針、□自家発電、□蓄電池、 □太陽光発電、□非常電源
B28: 情報・通信設備 | C28: ■テレビ共聴（□ｱﾝﾃﾅ・□ｹｰﾌﾞﾙ）、■電話設備、■インターネット、 ■インターホン、□オートロック、□防犯カメラ等、□電波障害対策、 □その他（ ）
B29: 消防用設備 | C29: ■屋内消火栓、■自動火災報知器、■連結送水管、□避難設備、 □スプリンクラー、 □その他（ ）
B30: 昇降機設備 | C30: ■昇降機（1）台
B31: 駐車場設備 | C31: ■平面（18）台、□機械式（ ）台、□自走式（ ）台、計（18）台、 □ターンテーブル
B32: 附属建物 | C32: □集会室（□棟内、□別棟）、□管理員室（□棟内、□別棟）
B33: その他 | C33: □自転車置場、□バイク置き場、□ ゴミ集積所、□遊具（プレイロット）、 □屋上緑化
A34: -3 | B34: 関係者
B35: 分譲会社名
B36: 施工会社名
B37: 設計・監理事務所名
B38: 管理会社名 | C38: 会社名 Ｔｅｌ （ ） - 管理員名 、勤務形態（ ） Ｔｅｌ （ ） -
B39: （分譲時）長期修繕計画案の作成者 | C39: 会社名 Ｔｅｌ （ ） - 作成者（作成部署）
A40: -4 | B40: 管理・所有区分
B41: 〔単棟型の場合〕
B42: 部位 | C42: 区分（標準管理規約との相違点等）
B43: 所有区分（建物）
B44: (設備）
B45: 管理区分（建物）

Sheet Table 2
A1: 〔団地型の場合〕
B2: 部分 | C2: 区分
B3: 団地
B4: 棟別
A5: (5) | B5: 維持管理の状況
B6: ①法定点検等の実施
B7: 点検等 | C7: 実施年月 | D7: 点検等の結果の要点
C8: 年 月
A12: ②調査・診断の実施
B13: 調査・診断 | D13: 調査・診断の結果の要点
A17: ③主な修繕工事の実施
B18: 箇 所 | D18: 修繕工事の概要
A24: ④長期修繕計画の見直し
B25: 時 期 | D25: 見直しの要点
A29: (6) | B29: 会計状況
B30: 借入金の残高 | D30: 年 月 日現在 | E30: （円）
B31: 修繕積立金残高
B32: 修繕積立金の額 | D32: 月当たり・戸当たり | E32: 7,500（円）
B33: 専用使用料からの繰入
B34: 駐車場等の使用料からの繰入
B35: その他の繰入

Sheet Table 3
A1: (7) | C1: 設計図書等の保管状況
C2: □設計図書 | F2: （竣工図 ）
C3: □構造計算書
C4: □数量計算書 | F4: （竣工図に基づく数量計算書）
C5: □確認申請書副本 | F5: □確認済証、□検査済証
C6: □分譲パンフレット | F6: □アフターサービス規準
C7: □点検報告書 | F7: □法定点検、□保守契約による点検
C8: □調査・診断報告書 | F8: （過去に実施したもの）
C9: □修繕工事の設計図書等 | F9: （仕様書、図面、数量計算書等）
C10: □その他関係書類 | F10: □電波障害協定書、□建設住宅性能評価書、 □設計住宅性能評価書、□石綿使用調査結果の記録、 □その他（ ）
C11: □長期修繕計画 | F11: □現に有効な長期修繕計画
C12: □管理規約 | F12: □現に有効な管理規約 □原始規約
C13: □各種ハザードマップ | F13: □洪水ハザードマップ □土砂災害ハザードマップ
A14: 別表 タイプ別専有面積
A15: 住戸タイプ | B15: 専有面積（㎡） | D15: 戸数 （戸）
A16: Ａ | B16: 70.00 | D16: 15
A17: Ｂ | B17: 75.00 | D17: 15
A18: Ｃ | B18: 80.00 | D18: 15
A31: 小計 | G31: 3,375.00 | H31: 45
A32: （店舗等）
G47: 0.00 | H47: 0
A48: 合計 | H48: 45

Sheet Table 4
A1: （様式第3-1号） 長期修繕計画の作成・修繕積立金の額の設定の考え方【既存マンション】
A2: 項 目 | C2: 基本的な考え方
A3: １ 長期修繕計画の作成の考え方
A4: -1 | B4: 長期修繕計画の目的 | C4: ・マンションの快適な居住環境を確保し、資産価値を維持するためには、適時適切な修繕工事を行うことが必要です。また、必要に応じて建物及び設備の性能向上を図る改修工事を行うことも望まれます。 ・そのためには、次に掲げる事項を目的とした長期修繕計画を作成し、これに基づいて修繕積立金の額を設定することが不可欠です。 ①将来見込まれる修繕工事及び改修工事の内容、おおよその時期、概算の費用等を明確にする。 ②計画修繕工事の実施のために積み立てる修繕積立金の額の根拠を明確にする。 ③修繕工事及び改修工事に関する長期計画について、あらかじめ合意しておくことで、計画修繕工事の円滑な実施を図る。
A5: -2 | B5: 計画の前提等 | C5: ・長期修繕計画の作成に当たっては、次に掲げる事項を前提条件とします。 ①推定修繕工事は、建物及び設備の性能・機能を新築時と同等水準に維持、回復させる修繕工事を基本とする。 ②区分所有者の要望など必要に応じて、建物及び設備の性能を向上させる改修工事を設定する。 ③計画期間において、法定点検等の点検及び経常的な補修工事を適切に実施する。 ④計画修繕工事の実施の要否、内容等は、事前に調査・診断を行い、その結果に基づいて判断する。
C6: ・長期修繕計画は、作成時点において、計画期間の推定修繕工事の内容、時期、概算の費用等に関して計画を定めるものです。 推定修繕工事の内容の設定、概算の費用の算出等は、新築マンションの場合、設計図書、工事請負契約書による請負代金内訳書及び数量計算書等を参考にして、また、既存マンションの場合、保管されている設計図書のほか、修繕等の履歴、劣化状況等の調査・診断の結果等を参考にして行います。 したがって、長期修繕計画は次に掲げる事項のとおり、将来実施する計画修繕工事の内容、時期、費用等を確定するものではありません。また、一定期間ごとに見直していくことを前提としています。 ①推定修繕工事の内容は、新築マンションの場合は現状の仕様により、既存マンションの場合は現状又は見直し時点での一般的な仕様により設定するが、計画修繕工事の実施時には技術開発等により異なることがある。 ②時期（周期）は、おおよその目安であり、立地条件等により異なることがある。 ③収支計画には、修繕積立金の運用利率、借入金の金利、物価及び消費税率の変動など不確定な要素がある。
A7: -3 | B7: 計画期間の設定 | C7: ・30年としています。 なお、「長期修繕計画標準様式」では次のとおり記載されています。 ・30年以上で、かつ大規模修繕工事が2回含まれる期間以上とします。
A8: -4 | B8: 推定修繕工事項目の設定 | C8: ・標準様式第3-2号に沿って、「入力データ記入票」に基づいて設定しています。 ・マンションの形状、仕様などにより該当しない項目、また、修繕周期が計画期間に含まれないため推定修繕工事費を計上していない項目があります。 ・長期修繕計画の見直し、大規模修繕工事のための調査・診断、修繕設計及び工事監理の費用を含んでいます。
A9: -5 | B9: 修繕周期の設定 | C9: ・推定修繕工事項目（小項目）ごとに、マンションの仕様、立地条件、調査・診断の結果等に基づいて設定しています。 ・推定修繕工事の実施の際の経済性等を考慮し、実施時期を集約しています。

Sheet 小修繕履歴
A1: 小修繕履歴 | AM1: 作成日／ 年 月 日 集会（管理組合総会）で議決された日／ 年 月 日 | AW1: （単位：千円）
A2: 区分 | B2: 推定修繕工事項目 | C2: 暦年 | G2: 2012 11期 | I2: 2013 12期 | K2: 2014 13期 | M2: 2015 14期 | O2: 2016 15期 | Q2: 2017 16期 | S2: 2018 17期 | U2: 2019 18期 | W2: 2020 19期 | Y2: 2021 20期 | AA2: 2022 21期 | AC2: 2023 22期 | AE2: 2024 23期 | AG2: 2025 | AH2: 2026 | AI2: 2027 | AJ2: 2028 | AK2: 2029 | AL2: 2030 | AM2: 2031 | AN2: 2032 | AO2: 2033 | AP2: 2034 | AQ2: 2035 | AR2: 2036 | AS2: 2037 | AT2: 2038 | AU2: 2039 | AV2: 2040 | AX2: 合計
C3: 経年 | G3: 項目 | H3: 費用 | I3: 項目 | J3: 費用 | K3: 項目 | L3: 費用 | M3: 項目 | N3: 費用 | O3: 項目 | P3: 費用 | Q3: 項目 | R3: 費用 | S3: 項目 | T3: 費用 | U3: 項目 | V3: 費用 | W3: 項目 | X3: 費用 | Y3: 項目 | Z3: 費用 | AA3: 項目 | AB3: 費用 | AC3: 項目 | AD3: 費用 | AE3: 項目 | AF3: 費用 | AG3: 24 | AH3: 25 | AI3: 26 | AJ3: 27 | AK3: 28 | AL3: 29 | AM3: 30 | AN3: 31 | AO3: 32 | AP3: 33 | AQ3: 34 | AR3: 35 | AS3: 36 | AT3: 37 | AU3: 38 | AV3: 39
A4: Ⅱ | S4: 防災センター移設 送排風機 | U4: 大雨被害 | W4: コロナ
A5: 建築 | G5: 駐車場ゲートリモコン修理 | H5: 14280 | I5: シリンダー修理 | J5: 12600 | K5: 誘導灯ランプ交換 | L5: 6615 | M5: シリンダー修理 | N5: 16200 | Q5: 漏水調査 | R5: 17064 | S5: 店舗雨樋化粧カバー復旧 | T5: 24408 | U5: シャッター修理 | V5: 27000 | W5: 防火扉補修 | X5: 8800 | Y5: 排水槽フロートスイッチ取替 | Z5: 108900 | AA5: シャッター修理 | AB5: 16280 | AC5: 光電式感知器取替 | AD5: 92400 | AE5: エヤコン取替 | AF5: 228800
G6: 植栽改修 | H6: 103647 | I6: 地下防災センター鍵制御盤修理 | J6: 15750 | K6: シャッター点検・修理 | L6: 10500 | M6: 電気錠修理 | N6: 19980 | Q6: シャッター修理 | R6: 19440 | S6: 駐輪場スライドドアー補修 | T6: 29808 | U6: 共用灯自動点滅器交換 | V6: 35640 | W6: 駐輪場照明器具取替 | X6: 27000 | Y6: 水漏れ調査費 | Z6: 116600 | AA6: 電子錠補修 | AB6: 29700 | AC6: 漏水調査費 | AD6: 123310 | AE6: 防災シャッター修繕 | AF6: 330000
G7: シャッター修理 | H7: 37800 | I7: 鉄扉電気錠補修 | J7: 19320 | K7: 同上 補修工事 | L7: 10500 | M7: シリンダー取替 | N7: 27000 | Q7: CS放送受信調査 | R7: 27000 | S7: 植栽補填 | T7: 35640 | U7: 排水槽フロートスイッチ交換 | V7: 46440 | W7: ポストダイヤル交換 | X7: 45840 | Y7: インバーター取替 | Z7: 121000 | AA7: 店舗シャッター修理 | AB7: 38830 | AC7: 受水槽内感知器取替 | AD7: 132000 | AE7: 防災シャッター修繕 | AF7: 495440
G8: センサーライト取付け | H8: 38500 | I8: 駐車場リモコン補修 | J8: 19530 | K8: 同上 スイッチＢOX補修 | L8: 11550 | M8: シャッター修理 | N8: 41040 | Q8: 階段踊り場漏水補修 | R8: 37800 | S8: 照明不点灯調査改修 | T8: 43200 | U8: 緊急ガス遮断弁保守点検 | V8: 147548 | W8: 防犯カメラ交換 | X8: 50000 | Y8: シャッター修理 | Z8: 125730 | AA8: 宅配BOX修理 | AB8: 44000 | AC8: 電子錠・タイマー取替 | AD8: 134200 | AE8: 防災シャッター修繕 | AF8: 177870
A9: Ⅲ | G9: 路盤改修 | H9: 54000 | I9: 無線信号装置取付け | J9: 21000 | K9: シリンダー修理 | L9: 36750 | M9: 照明器具交換 | N9: 41040 | Q9: 消火器取替 | R9: 38800 | S9: 駐車場漏水補修 | T9: 54918 | U9: 植栽他工事 | V9: 151200 | W9: 排水槽フロートスイッチ取替 | X9: 50760 | Y9: 照明器具取替 | Z9: 168300 | AA9: プレハブ冷蔵庫修理 | AB9: 49500 | AC9: 防犯カメラ更新 | AD9: 242000 | AE9: 消火器誘導灯改修 | AF9: 350185
A10: 設備 | G10: エヤコンドレンアップ交換 | H10: 88515 | I10: ロボットゲート修理 | J10: 23520 | K10: 廊下灯絶縁不良調査・改修 | L10: 36750 | M10: 照明器具スイッチ改修 | N10: 73224 | Q10: 地下EXPJ漏水補修 | R10: 42120 | S10: 照明器具取替 | T10: 66960 | U10: 庇補修・駐車場管理室漏水補修 | V10: 213840 | W10: 店舗ドレン改修 | X10: 68365 | Y10: ポストキャップ取替 | Z10: 211200 | AA10: 感知器取替 | AB10: 57200 | AC10: ガス管補修 | AD10: 275000 | AE10: 防火シャッター改修 | AF10: 36300
G11: エヤコン交換 | H11: 12600 | I11: 駐車場照明器具取替 | J11: 28770 | K11: 煙感取替 | L11: 37800 | M11: 消防設備（住宅）改修工事 | N11: 75075 | Q11: 排水槽フロートスイッチ交換 | R11: 46440 | S11: シャッター修理 | T11: 68364 | U11: 自動ドア修理 | V11: 270000 | W11: 増圧給水ポンプ圧力タンク取替 | X11: 162800 | Y11: 排煙窓修理 | Z11: 220000 | AA11: タイル補修 | AB11: 60500 | AC11: 排煙窓修繕 | AD11: 319000 | AE11: 防災シャッター追加 | AF11: 164934
G12: 電波障害施設調査費 | H12: 40950 | I12: オートロックスイッチ修理 | J12: 39375 | K12: 緊急ガス遮断弁 定期整備 | L12: 46200 | M12: 不鳴調査 | N12: 86400 | Q12: 自転車搬送コンベアライン取替 | R12: 50760 | S12: 駐輪場扉補修 | T12: 109836 | U12: 天井漏水補修工事 | V12: 518400 | W12: 受水槽排水ポンプ取替 | X12: 550000 | AA12: ゲートモーター交換 | AB12: 113256 | AC12: 消防設備点検費 | AD12: 323400 | AE12: シャッター修理 | AF12: 13860
G13: 照明器具交換 | H13: 27300 | I13: 喚起ダクト廻り漏水調査 | J13: 46200 | K13: 電気錠取替 | L13: 61897 | M13: 防鳥ネット改修 | N13: 90720 | Q13: 店舗前ダウンライト取り替え | R13: 59400 | S13: 電子錠・タイマー取替 | T13: 118800 | U13: 天井漏水調査 | V13: 648000 | W13: シャッター修理 | X13: 830488 | AA13: 電子錠取替 | AB13: 113300 | AC13: シャッター修理 | AD13: 788040 | AE13: 防災シャッター修繕 | AF13: 1081520
G14: 看板等補修工事 | H14: 27300 | I14: 自動ドア修理 | J14: 190050 | K14: 自動ドア修理 | L14: 63000 | M14: 排水ポンプ取替 | N14: 225750 | Q14: 共用散水系統漏水補修 | R14: 62640 | S14: 誘導灯交換 | T14: 172216 | U14: 共用旧排水管調査 | V14: 961632 | W14: エントランス巾木額口補修 | X14: 1447600 | AA14: 防火戸ラッチ調査 | AB14: 113850 | AC14: 非常照明器具取替 | AD14: 847000 | AE14: シャッター修理修理 | AF14: 15180
G15: 配管ピット内防水工事 | H15: 338100 | I15: シャッター修理 | J15: 496650 | K15: 感知器調査 | L15: 82950 | M15: スプリンクラーヘッド取替 | N15: 303480 | Q15: ELV誘導灯取替 | R15: 66960 | S15: ボイススピーカー取替 | T15: 216160 | U15: サイン工事 | V15: 1447200 | AA15: 排水槽フロートスイッチ取替 | AB15: 130570 | AC15: 防犯カメラ取替 | AD15: 1056000 | AE15: 照明器具取替 | AF15: 30800
G16: シリンダー修理 | H16: 15750 | K16: 照明器具交換 | L16: 122850 | M16: 送風機修理 | N16: 357000 | Q16: 店舗出入口電子錠取替 | R16: 83160 | S16: ELV前照明器具取替 | T16: 216160 | AA16: 感知器改修 | AB16: 165000 | AC16: 排水ポンプ取替 | AD16: 1419000 | AE16: 電子錠アダプター取替 | AF16: 24200
G17: スプリンクラー調査 | H17: 278250 | K17: 鳩対策工事 | L17: 262500 | M17: シャッター修理点検修理 | N17: 365040 | Q17: 平板不陸調整 | R17: 95040 | S17: 階段断線工事 | T17: 343440 | AA17: 地下排水ポンプ取替 | AB17: 178200 | AE17: 貯水槽水位制御工事 | AF17: 583000
G18: 共用部長尺シート補修 | H18: 27800 | K18: 送風機修理・ベルト交換点検修理 | L18: 399000 | M18: 植栽工事 | N18: 379728 | Q18: 坪庭植栽他工事 | R18: 98280 | S18: エントランスエヤコン取替 | T18: 829440 | AA18: 照明器具取替 | AB18: 216700 | AE18: 防災盤部品交換 | AF18: 2420000
G19: 路盤補修 | H19: 44600 | M19: 消防設備（共用部）改修 | N19: 577500 | Q19: 駐輪場スライダー扉開閉不良調整 | R19: 126900 | S19: 中央監視装置MCU UPS交換工事 | T19: 950400 | AA19: 発電室防音ドア補修 | AB19: 228800 | AE19: シャッター修理 | AF19: 480150
G20: 照明器具交換 | H20: 23541 | M20: 排煙窓修理 | N20: 734400 | Q20: ポット用樹木支柱補修 | R20: 137916 | AA20: 駐車場出入口グレーチング補修 | AB20: 295680
Q21: 防犯カメラ設置 | R21: 199800 | AA21: 駐車場ピット内漏水調査 | AB21: 317350
Q22: 庇シーリング打ち替え | R22: 200880 | AA22: 消火補給水槽廻り取替 | AB22: 473000
Q23: ゲート修理 | R23: 243216 | AA23: 電気温水器取替 | AB23: 473000
Q24: 店舗天井漏水 | R24: 291600 | AA24: ゴミ庫シャッター修理 | AB24: 893750
Q25: CS放送改修工事 | R25: 463320 | AA25: 屋外階段シート改修 | AB25: 6435000
Q26: 庇補修工事 | R26: 799200
Q27: １階南軒天塗装工事 | R27: 885600
Q28: １階空調ガラリ補修工事 | R28: 1976400
D30: 合計 | H30: =SUM(H5:H29) -> 1172933 | J30: =SUM(J5:J29) -> 912765 | L30: =SUM(L5:L29) -> 1188862 | N30: =SUM(N5:N29) -> 3413577 | P30: =SUM(P5:P29) -> 0 | R30: =SUM(R5:R29) -> 6069736 | T30: =SUM(T5:T29) -> 3279750 | V30: =SUM(V5:V29) -> 4466900 | X30: =SUM(X5:X29) -> 3241653 | Z30: =SUM(Z5:Z29) -> 1071730 | AB30: =SUM(AB5:AB29) -> 10443466 | AD30: =SUM(AD5:AD29) -> 5751350 | AF30: =SUM(AF5:AF29) -> 6432239

Sheet Sheet2

Sheet Table 5
A1: -6 | B1: 推定修繕工事費の算定 | C1: ・推定修繕工事費は、推定修繕工事項目の小項目ごとに、算出した数量に設定した単価を乗じて算定しています。 ・修繕積立金の運用益及び物価変動は、考慮していません。 ・消費税は、10％とし、会計年度ごとに計上しています。
B2: ①仕様の設定 | C2: ・推定修繕工事項目の小項目ごとに、現状又は見直し時点での一般的な仕様を設定しています。
B3: ②数量計算 | C3: ・提出して頂いた「入力データ記入票」及び住戸数によって算出しています。 なお、「長期修繕計画標準様式」では次のとおり記載されています。 ・現状の長期修繕計画を踏まえ、保管している設計図書、数量計算書、修繕等の履歴、現状の調査・診断の結果等を参考として、「建築数量積算基準・同解説」等に準拠して、長期修繕計画用に算出しています。
B4: ③単価の設定 | C4: ・一般的な計画修繕工事の実施データ等をもとに設定した標準モデルの戸当たりの額を、マンションの形状、仕様等による係数で補正しています。 ・単価は首都圏を対象としたもので、地域等による差異は考慮していません。 ・諸経費は見込まれる推定修繕工事ごとの総額に応じた比率の額を単価に含めて設定しています。 なお、「長期修繕計画標準様式」では次のとおり記載されています。 ・修繕工事特有の施工条件等を考慮し、過去の計画修繕工事の契約実績、その調査データ、刊行物の単価、専門工事業者の見積価格等を参考として設定しています。 ・現場管理費・一般管理費・法定福利費、計画修繕工事にかかる瑕疵保険料などの諸経費および消費税等相当額を上記とは①別途設定する方法と、前述の諸経費について、②見込まれる推定修繕工事ごとの総額に応じた比率の額を単価に含めて設定する方法があり、（前者 ①／後者②）の方法で設定しています。 ・単価に地域差がある場合には、必要に応じて考慮しています。
A5: -7 | B5: 収支計画の検討 | C5: ・計画期間に見込まれる推定修繕工事費（借入金がある場合はその償還金を含む。）の累計額を、修繕積立金（修繕積立基金、一時金、専用庭等の専用使用料及び駐車場等の使用料からの繰入れ並びに修繕積立金の運用益を含む。）の累計額が下回らないように計画しています。
A6: -8 | B6: 計画の見直し | C6: ・長期修繕計画は、次に掲げる不確定な事項を含んでいますので、５年程度ごとに調査・診断を行い、その結果に基づいて見直すことが必要です。なお、見直しには一定の期間（概ね１～ ２年）を要することから、見直しについても計画的に行う必要があります。また、併せて修繕積立金の額も見直します。 ①建物及び設備の劣化の状況 ②社会的環境及び生活様式の変化 ③新たな材料、工法等の開発及びそれによる修繕周期、単価等の変動 ④修繕積立金の運用益、借入金の金利、物価、工事費価格、消費税率等の変動
A7: ２ 修繕積立金の額の設定の考え方
A8: 修繕積立金の額の設定 | C8: ・修繕積立金の積立ては、長期修繕計画の作成時点において、計画期間に積み立てる修繕積立金の額を均等にする積立方式としています。なお、５年程度ごとの計画の見直しにより、計画期間の推定修繕工事費の累計額の増加に伴って必要とする修繕積立金の額が増加します。 ・修繕積立金のほか、専用庭等の専用使用料及び駐車場等の使用料からそれらの管理に要する費用に充当した残金を修繕積立金会計に繰り入れることとしています。 ・計画期間の推定修繕工事費の累計額を計画期間（月数）で除 し、各住戸の負担割合を乗じて、月当たり戸当たりの修繕積立金の額を算定しています。 （・大規模修繕工事の予定年度において、修繕積立金の累計額が推定修繕工事費の累計額を一時的に下回るときは、その年度に一時金の負担、借入れ等の対応をとることが必要で す。）

Sheet 修繕周期表1
A1: （様式第3-2号） 推定修繕工事項目、修繕周期等の設定内容
A2: 推定修繕工事項目 | C2: 対象部位等 | D2: 工事区分 | E2: 修繕周期（参考） | F2: 想定している修繕方法等
A3: Ⅰ 仮設
A4: １ 仮設工事
A5: ①共通仮設 | D5: 仮設 | E5: １２～１５年 | F5: 仮設事務所、資材置き場等
A6: ②直接仮設 | F6: 枠組足場、養生シート等
A7: Ⅱ 建物
A8: ２ 屋根防水
A9: ①屋上防水（保護） | C9: 屋上、塔屋、ルーフバルコニー | D9: 補修 | F9: 伸縮目地の打替え、保護コンクリート部分補修
D10: 修繕 | E10: ２４～３０年 | F10: 下地調整の上、露出防水（ウレタン塗膜防水） ※かぶせ方式（保護層を撤去しない）
A11: ②屋上防水（露出） | C11: 屋上、塔屋 | F11: ウレタン塗膜防水の上、保護塗装（トップコート塗り） ※かぶせ方式（防水層を撤去しない）
D12: 撤去・新設 | F12: 既存防水層を全面撤去の上、下地調整、（露出ｱｽﾌｧﾙﾄ防水等）
A13: ③傾斜屋根 | C13: 屋根 | F13: 下地調整の上、保護塗装（水性ポリマー等）
D14: 撤去・葺替 | F14: 既存屋根材を全面撤去の上、下地補修、葺替え （アスファルトシングル葺、金属板葺等）
A15: ④庇・笠木等防水 | C15: 庇天端、笠木天端、パラペット天端・アゴ、架台天端等 | F15: 高圧水洗の上、下地調整、（ウレタン塗膜防水等）
A16: ３ | B16: 床防水
A17: ①バルコニー床防水 | C17: バルコニーの床 （側溝、幅木を含む） | F17: 床／高圧水洗の上、下地調整、（ウレタン塗膜防水）
F18: 側溝・幅木／高圧水洗の上、下地調整、（ウレタン塗膜防水）
A19: ②開放廊下・階段等床防水 | C19: 開放廊下・階段の床 （側溝、幅木を含む） | F19: 床部／高圧水洗の上、下地調整、（塩ビシート張り等）
F20: 側溝・幅木／高圧洗浄の上、下地調整、（ウレタン塗膜防水）
A21: ４ 外壁塗装等
A22: ①躯体コンクリート補修 | C22: 外壁、屋根、床、手すり壁、軒天（上げ裏）、庇等 （コンクリート、モルタル部分） | F22: ひび割れ・浮き・欠損・鉄筋の発錆・モルタルの浮き等の補修
A23: ②外壁塗装（雨掛かり部分） | C23: 外壁、手すり壁等 | D23: 塗替 | F23: 高圧洗浄の上、下地処理、塗装（仕上塗材）
D24: 除去・塗装 | F24: 既存全面除去の上、下地処理、塗装（仕上塗材）
A25: ③外壁塗装（非雨掛かり部分）
A27: ④軒天塗装 | C27: 開放廊下・階段、バルコニー等の軒天（上げ裏）部分 | F27: 高圧水洗の上、下地処理、塗装
F28: 既存全面除去の上、下地処理、塗装
A29: ⑤タイル張補修 | C29: 外壁・手すり壁等 | F29: 高圧洗浄、欠損・浮き・剥離・ひび割れ等の補修、一部張替え
A30: ⑥シーリング | C30: 外壁目地、建具周り、スリーブ周り、部材接合部等 | D30: 打替 | F30: 打継・伸縮・誘発目地、部材取合部等の打替え
A31: ５ 鉄部塗装等
A32: ①鉄部塗装 （雨掛かり部分） | C32: （鋼製）開放廊下・階段、バルコニーの手すり | E32: ５～７年 | F32: 下地処理の上、塗装
C33: （鋼製）屋上フェンス、設備機器、立て樋・支持金物、架台、避難ハッチ、マンホール蓋、隔て板枠、物干金物等
C34: 屋外鉄骨階段、自転車置場、遊具、フェンス | F34: 下地処理の上、塗装 （注）機械式駐車場を除く
A35: ②鉄部塗装 （非雨掛かり部分） | C35: （鋼製）住戸玄関ドア
C36: （鋼製）共用部分ドア、メーターボックス扉、手すり、照明器具、設備機器、配電盤類、屋内消火栓箱等
A37: ③非鉄部塗装 | C37: （アルミ製・ステンレス製等） サッシ、面格子、ドア、手すり、避難ハッチ、換気口等 | D37: 清掃 | F37: 洗浄の上、コーティング
C38: （ボード、樹脂、木製等） 隔て板・エアコンスリーブ・雨樋等

Sheet 修繕周期表2
A3: ６ 建具・金物等
A4: ①建具関係 | B4: 住戸玄関ドア、共用部分ドア、自動ドア | C4: 点検・調整 | E4: 動作点検、金具（丁番、ドアチェック等）の調整等
C5: 取替 | D5: ３４～３８年 | E5: かぶせ工法（既存枠の上に新規枠を取付け）
B6: 窓サッシ、面格子、網戸、シャッター | E6: 動作点検、金具（戸車、クレセント、ビート等）の調整等
A8: ②手すり | B8: 開放廊下・階段、バルコニーの手すり、防風スクリーン | E8: 全部撤去の上、アルミ製手すりに取替え
A9: ③屋外鉄骨階段 | B9: 屋外鉄骨階段 | E9: 点検、腐食部板金溶接補修、踏板取替え等
E10: 全部撤去の上、建替え
A11: ④金物類 （集合郵便受等） | B11: 集合郵便受、掲示板、宅配ロッカー等 | D11: ２４～２８年
B12: 笠木、架台、マンホール蓋、階段ノンスリップ、避難ハッチ、タ ラップ、排水金物、室名札、立て樋・支持金物、隔て板、物干金物、スリーブキャップ等
B13: 屋上フェンス等
A14: ⑤金物類 （メータボックス扉等） | B14: メーターボックスの扉、パイプスペースの扉等
A15: ７ 共用内部
A16: ①共用内部 | B16: 管理事務室、集会室、内部廊下、内部階段等の壁、床、天井 | C16: 張替・塗替 | E16: 床・壁・天井の塗替え･張替え等
B17: エントランスホール、エレベーターホールの壁、床、天井
A18: Ⅲ 設備
A19: ８ 給水設備
A20: ①給水管 | B20: 屋内共用給水管 | C20: 更生 | D20: １９～２３年
B21: 屋内共用給水管、屋外共用給水管 | C21: 取替（更新） | D21: ３０～４０年 | E21: 仕上げ材の補修を含む
E22: 塩ビライニング鋼管への取替え
A23: ②貯水槽 | B23: 受水槽 | D23: ２６～３０年 | E23: ＦＲＰ製への取替え
B24: 高置水槽
A25: ③給水ポンプ | B25: 揚水ポンプ、加圧給水ポンプ、直結増圧ポンプ、弁類等 | D25: ５～８年 | E25: ポンプのオーバーホール等
D26: １４～１８年
A27: ９ 排水設備
A28: ①排水管 | B28: 屋内共用雑排水管
B29: 屋内共用雑排水管、汚水管、雨水管 | E29: 住戸内パイプシャフトを解体撤去の上、取替え、復旧
A30: ②排水ポンプ | B30: 排水ポンプ、弁類等
A32: 10 ガス設備
A33: ①ガス管 | B33: 屋外埋設部ガス管、屋内共用ガス管 | D33: ２８～３２年 | E33: 埋設部掘削、管の敷設、埋戻し、復旧
E34: （ポリエチレン管等）
A35: 11 空調・換気設備等
A36: ①空調設備 | B36: 管理事務室、集会室等のエアコン | D36: １３～１７年
A37: ②換気設備 | B37: 管理事務室、集会室、機械室、電気室等の換気扇、ダクト類、換気口、換気ガラリ

Sheet 修繕周期表3
A3: 12 電灯設備等
A4: ①電灯設備 | B4: 共用廊下・エントランスホール等の照明器具、配線器具、非常照明、避難口・通路誘導灯、外灯等 | D4: １８～２２年
A5: ②配電盤類 | B5: 配電盤・プルボックス等
A6: ③幹線設備 | B6: 引込開閉器、幹線（電灯、動力）等 | E6: 幹線、引込開閉器等の取替え（容量増）
A7: ④避雷針設備 | B7: 避雷突針・ポール・支持金物・導線・接地極等 | D7: ３８～４２年
A8: ⑤自家発電設備 | B8: 発電設備
A9: 13 情報・通信設備
A10: ①電話設備 | B10: 電話配線盤（MDF）、中間端子盤（IDF）等
A11: ②テレビ共聴設備 | B11: アンテナ、増幅器、分配器等 ※同軸ケーブルを除く | D11: １５～２０年
A12: ③インターネット設備 | B12: 住棟内ネットワーク
A13: ④インターホン設備等 | B13: インターホン設備、オートロック設備、住宅情報盤、防犯設備、配線等
A14: 14 消防用設備
A15: ①屋内消火栓設備 | B15: 消火栓ポンプ、消火管、ホース類、屋内消火栓箱等 | D15: ２３～２７年
A16: ②自動火災報知設備 | B16: 感知器、発信器、表示灯、音響装置、中継器、受信器等 | E16: 住宅用又は共同住宅用
A17: ③連結送水管設備 | B17: 送水口、放水口、消火管、消火隊専用栓箱等
A18: 15 昇降機設備
A19: ①昇降機 | B19: カゴ内装、扉、三方枠等 | E19: 内装取替え、三方枠塗装
B20: 全構成機器 | E20: 全部撤去・新設
A21: 16 立体駐車場設備
A22: ①自走式駐車場 | B22: プレハブ造（鉄骨造＋ＡＬＣ） | D22: ８～１２年 | E22: 鉄部塗装、車止等の取替え
C23: 建替
A24: ②機械式駐車場 | B24: 二段方式、多段方式（昇降式、横行昇降式、ピット式）垂直循環方式等 | D24: ５年 | E24: 鉄部塗装、部品交換
E26: 駐車装置、制御板、昇降装置等
A27: Ⅳ 外構・その他
A28: 17 外構・附属施設
A29: ①外構 | B29: 平面駐車場、車路・歩道等の舗装、側溝、排水溝
B30: 囲障（塀、フェンス等）、サイン（案内板）、遊具、ベンチ等
B31: 埋設排水管、排水桝等 ※埋設給水管を除く
A32: ②附属施設 | B32: 自転車置場、ゴミ集積所
B33: 植樹 | C33: 整備
A34: 18 調査・診断、設計、工事監理等費用
A35: ①点検・調査・診断 | B35: 大規模修繕工事の実施前に行う点検・調査・診断 | D35: １０～１２年 | E35: 第1回目・第4回目…の大規模修繕工事に係る業務
E36: 第2回目・第5回目…の大規模修繕工事に係る業務
E37: 第3回目・第6回目…の大規模修繕工事に係る業務
A38: ②設計、コンサルタント | B38: 計画修繕工事の設計（基本設計・実施設計）・コンサルタント
A41: ③工事監理 | B41: 計画修繕工事の工事監理
A44: ④臨時点検（被災時） | B44: 建物、設備、外構 | D44: -
A45: 19 長期修繕計画作成費用
A46: ①見直し | B46: 長期修繕計画の見直しのための調査・診断長期修繕計画の見直し
A47: （注） 現場管理費及び一般管理費は、各項目ごとの工事費（単価）に含む。
A49: Ⅴ 性能向上工事項目（例）（必要に応じて、Ⅱ建物又はⅢ設備に追加する。）
A50: (1) 耐震 | B50: 耐震壁の増設、柱・梁の補強、免震、設備配管の補強、耐震ドアへの交換、エレベーターの着床装置・Ｐ波感知装置の設置等 | C50: 改修 | D50: 予定年度
A51: (2) バリアフリー | B51: スロープ、手すりの設置、自動ドアの設置、エレベーターの設置・増設
A52: (3) 省エネルギー | B52: 断熱（屋上、外壁、開口部）、昇降機、照明等の設備の制御等
A53: (4) 防犯 | B53: 照明照度の確保、オートロック、防犯カメラの設置等
A54: (5) その他 | B54: ・情報通信（インターネット接続環境の整備等）
B55: ・給水方式の変更（直結増圧給水方式への変更等）
B56: ・電気容量の増量（電灯幹線の増量等）
B57: ・利便施設の設置（宅配ボックス等）
B58: ・エレベーターの安全性向上（戸開走行防止装置の設置等）
B59: ・外部環境（外構、植栽、工作物等の整備）
A60: Ⅵ 専有部分工事項目 （専有部分配管） （例）（必要に応じて、「Ⅰ仮設」～「Ⅳ外構・その他」とは別項目として追加する。）
A61: ①専有部分配管（※） | B61: 専有部分給水管、専有部分雑排水管、専有部分汚水管 | D61: 年
A62: ※屋内共用給水管・排水管等と同時かつ一体的に行う工事に限る
A63: Ⅶ 諸経費等 （例）上記工事項目と区別して設定する場合
A64: ・現場管理費
A65: ・一般管理費
A66: ・法定福利費
A67: ・大規模修繕瑕疵保険の保険料 等

Sheet 総括表
A1: （様式第4-1号）長期修繕計画総括表 | W1: 作成日／ 年 月 日 集会（管理組合総会）で議決された日／ 年 月 日 | AG1: （単位：千円）
A2: 区分 | B2: 推定修繕工事項目 | C2: 暦年 | D2: 2012 | E2: 2013 | F2: 2014 | G2: 2015 | H2: 2016 | I2: 2017 | J2: 2018 | K2: 2019 | L2: 2020 | M2: 2021 | N2: 2022 | O2: 2023 | P2: 2024 | Q2: 2025 | R2: 2026 | S2: 2027 | T2: 2028 | U2: 2029 | V2: 2030 | W2: 2031 | X2: 2032 | Y2: 2033 | Z2: 2034 | AA2: 2035 | AB2: 2036 | AC2: 2037 | AD2: 2038 | AE2: 2039 | AF2: 2040 | AH2: 合計
C3: 経年 | D3: 11 | E3: 12 | F3: 13 | G3: 14 | H3: 15 | I3: 16 | J3: 17 | K3: 18 | L3: 19 | M3: 20 | N3: 21 | O3: 22 | P3: 23 | Q3: 24 | R3: 25 | S3: 26 | T3: 27 | U3: 28 | V3: 29 | W3: 30 | X3: 31 | Y3: 32 | Z3: 33 | AA3: 34 | AB3: 35 | AC3: 36 | AD3: 37 | AE3: 38 | AF3: 39
A4: 仮設 | B4: 0 仮設工事 | E4: =SUM(工事費内訳書!I5) -> 6940000 | X4: 15.39 | AH4: 30.78
B5: 1 直接工事費 | E5: =SUM(工事費内訳書!I8) -> 34294760
A6: 建築 | B6: ２ 下地補修工事 | E6: =SUM(工事費内訳書!I18) -> 3623030 | X6: 4.748 | AH6: 10.683
B7: ３ 石・タイル工事 | E7: =SUM(工事費内訳書!I28) -> 9371720 | X7: 5.914 | AH7: 11.828
B8: ４ シーリング工事 | E8: =SUM(工事費内訳書!I47) -> 9831467 | J8: 鉄部塗装 | X8: 15.617 | AH8: 45.512
B9: ５ 外壁塗装工事 | E9: =SUM(工事費内訳書!I69) -> 20062142 | F9: 1.924 | J9: 前回2010 | X9: 3.513 | AD9: 2.958 | AH9: 12.942
B10: ７ 鉄部塗装工事 | E10: =SUM(工事費内訳書!I122) -> 4339760 | J10: 9180000
B11: ８ 防水工事 | E11: =SUM(工事費内訳書!I231) -> 21218928 | F11: 62.027 | AH11: 78.187
B12: ９ 床工事 | E12: =SUM(工事費内訳書!I260) -> 9019455
B13: 10 洗い工事 | E13: =SUM(工事費内訳書!I268) -> 7533830
B14: 11 その他雑工事 | E14: =SUM(工事費内訳書!I282) -> 9648800
B15: 12 室内改装その他工事 | E15: =SUM(工事費内訳書!I302) -> 1070100 | X15: 851 | AH15: 1.701
B16: 13 工事管理費 | E16: =SUM(工事費内訳書!I304:I305) -> 11046008
A17: 設備 | B17: ８ 給水設備 | F17: 2.797 | V17: 2.797 | AD17: 10.733 | AH17: 22.988
B18: ９ 排水設備 | F18: 1.332 | V18: 1.332 | AD18: 14.175 | AH18: 16.839
B19: 10 ガス設備 | AD19: 2.171 | AH19: 2.171
B20: 11 空調・換気設備 | AD20: 1.107 | AH20: 2.214
B21: 12 電灯設備等 | T21: 800 | AD21: 8.829 | AH21: 12.383
B22: 13 情報・通信設備 | AD22: 7.849 | AH22: 15.015
B23: 14 消防用設備 | T23: 5.67 | AH23: 9.729
B24: 15 昇降機設備 | AD24: 13.986 | AH24: 14.799
B25: 16 立体駐車場設備 | AH25: 0
A26: 外構 ・その他 | B26: 17 外構・附属施設 | K26: 災害用水源確保調査 | AH26: 4.893
B27: 18 調査・診断、 設計、工事監理等費用 | E27: 100 | K27: 550000 | L27: 規約改正 | V27: 2.214 | X27: 1.476 | AH27: 9.225
B28: 19 長期修繕計画作成費用 | L28: 495000 | R28: 517 | X28: 517 | AD28: 517 | AH28: 2.583
B29: 20 その他 | D29: =SUM(工事費内訳書!I29) -> 0 | L29: 286.9821334 | X29: 409.6317119 | AH29: 2.385692
A30: 工事費計 | D30: =SUM(D4:D29) -> 0 | E30: =SUM(E4:E29) -> 148000100 | F30: 68.08 | G30: 0 | H30: 0 | I30: 0 | J30: 9180000 | K30: 550000 | L30: 495286.9821 | M30: 0 | N30: 0 | O30: 0 | P30: 0 | Q30: 0 | R30: 517 | S30: 0 | T30: 805.67 | U30: 0 | V30: 6.343 | W30: 0 | X30: 1824.289712 | Y30: 0 | Z30: 0 | AA30: 0 | AB30: 0 | AC30: 0 | AD30: 578.808 | AH30: 1.2077654
A31: 消費税 | E31: =SUM(工事費内訳書!I307) -> 7400000 | J31: =SUM(J10*0.08) -> 734400 | L31: 306.1811649 | X31: 438.960778 | AH31: 0.0298388
A32: ①合計
A33: ➁小修繕（一般会計）工事合計
A34: 支出 | B34: ①+➁修繕工事費 年度合計 | D34: =SUM(D30:D31) -> 0 | E34: =SUM(E30:E31) -> 155400100 | F34: 68.08 | G34: 0 | H34: 0 | I34: 0 | J34: 9914400 | K34: 550000 | L34: 495593.1633 | M34: 0 | N34: 0 | O34: 0 | P34: 0 | Q34: 0 | R34: 517 | S34: 0 | T34: 805.67 | U34: 0 | V34: 6.343 | W34: 0 | X34: 2263.25049 | Y34: 0 | Z34: 0 | AA34: 0 | AB34: 0 | AC34: 0 | AD34: 578.808 | AH34: -1.1480878
B35: 修繕工事費 累計 | D35: =SUM(D34) -> 0 | E35: =SUM(D35+E34) -> 155400100 | F35: 427.2856383 | L35: 325.3801965 | R35: 573.6289144 | X35: 468.2898441 | AD35: 242.8223598 | AH35: -2.3260144
B36: 支出 年度合計 | F36: 477.3291284 | L36: 344.579228 | R36: 589.1637217 | X36: 497.6189101 | AH36: -4.6818676
B37: 支出 累計 | F37: 502.3508734 | L37: 354.1787438 | R37: 596.9311254 | X37: 512.2834432 | AD37: 300.8919949 | AH37: -5.8597942
A38: 収入 | B38: 修繕積立金の残高 （修繕積立基金） | F38: 527.3726184 | L38: 363.7782596 | R38: 604.6985291 | X38: 526.9479762 | AD38: 320.24854 | AH38: -7.0377208
B39: 修繕積立金 年度合計 改正案Ａ （＠276円／㎡･月） | F39: 552.3943635 | L39: 373.3777753 | R39: 612.4659327 | X39: 541.6125092 | AD39: 339.605085 | AH39: -8.2156474
B40: 専用使用料等からの繰入額年度合計 | F40: 577.4161085 | L40: 382.9772911 | R40: 620.2333364 | X40: 556.2770423 | AH40: -9.393574
B41: 修繕積立金の運用益年度合計 | F41: 602.4378535 | L41: 392.5768069 | R41: 628.0007401 | X41: 570.9415753 | AD41: 378.3181751 | AH41: -10.5715006
B42: 収入 年度合計 | F42: 627.4595986 | L42: 402.1763226 | O42: 423.5050973 | R42: 635.7681437 | V42: 2.140241758 | X42: 585.6061084 | AD42: 397.6747201 | AH42: -11.7494272
B43: 収入 累計 | F43: 652.4813436 | L43: 411.7758384 | R43: 643.5355474 | V43: 2.143774725 | X43: 600.2706414 | AD43: 417.0312652 | AH43: -12.9273538
A44: 年度収支 | F44: 677.5030886 | L44: 421.3753542 | O44: 571.8777568 | R44: 651.3029511 | V44: 2.147307692 | X44: 614.9351744 | AD44: 436.3878102 | AH44: -14.1052804
A45: 修繕積立金 次年度繰越金 | F45: 702.5248336 | L45: 430.97487 | O45: 646.0640865 | R45: 659.0703547 | V45: 2.150840659 | X45: 629.5997075 | AD45: 455.7443553 | AH45: -15.283207
A46: 修繕積立金等累計現行（＠100円／㎡･月） | F46: 727.5465787 | L46: 440.5743857 | O46: 720.2504162 | R46: 666.8377584 | T46: -788.66 | V46: 2.154373626 | X46: 644.2642405 | AD46: 475.1009003 | AH46: -16.4611336
A47: 修繕積立金等累計 改正案Ｂ（＠ 円／㎡･月） | F47: 752.5683237 | L47: 450.1739015 | O47: 794.4367459 | R47: 674.6051621 | V47: 2.157906593 | X47: 658.9287735 | AD47: 494.4574453 | AH47: -17.6390602

Sheet 工事費年次集計表
A1: （様式第4-3号）長期修繕計画表（推定修繕工事項目（小項目）別、年度別） | X1: 作成日／ 年 月 日 集会（管理組合総会）で議決された日／ 年 月 日 | AK1: （単位：千円）
A2: 推定修繕工事項目 | D2: 工事区分 | E2: 修繕 | F2: 暦年 | G2: 2022 | H2: 2023 | I2: 2024 | J2: 2025 | K2: 2026 | L2: 2027 | M2: 2028 | N2: 2029 | O2: 2030 | P2: 2031 | Q2: 2032 | R2: 2033 | S2: 2034 | T2: 2035 | U2: 2036 | V2: 2037 | W2: 2038 | X2: 2039 | Y2: 2040 | Z2: 2041 | AA2: 2042 | AB2: 2043 | AC2: 2044 | AD2: 2045 | AE2: 2046 | AF2: 2047 | AG2: 2048 | AH2: 2049 | AI2: 2050 | AJ2: 2051 | AK2: 小計 | AL2: 消費税 | AM2: 合計
E3: 周期 | F3: 経年 | G3: 64 | H3: 65 | I3: 66 | J3: 67 | K3: 68 | L3: 69 | M3: 70 | N3: 71 | O3: 72 | P3: 73 | Q3: 74 | R3: 75 | S3: 76 | T3: 77 | U3: 78 | V3: 79 | W3: 80 | X3: 81 | Y3: 82 | Z3: 83 | AA3: 84 | AB3: 85 | AC3: 86 | AD3: 87 | AE3: 88 | AF3: 89 | AG3: 90 | AH3: 91 | AI3: 92 | AJ3: 93
A4: Ⅰ | O4: 15.39 | AA4: 15.39 | AK4: 30.78 | AL4: 3.078 | AM4: 33.858
A5: 仮設 | B5: ①共通仮設 | E5: 12年 | O5: 5.13 | AA5: 5.13 | AK5: 10.26 | AL5: 1.026 | AM5: 11.286
B6: ②直接仮設 | O6: 10.26 | AA6: 10.26 | AK6: 20.52 | AL6: 2.052 | AM6: 22.572
A7: Ⅱ | O7: 5.935 | AA7: 4.748 | AK7: 10.683 | AL7: 1.068 | AM7: 11.751
A8: 建物 | B8: ①屋上防水（保護） | D8: 補修
B10: ②屋上防水（露出） | AA10: 4.748 | AK10: 4.748 | AL10: 475 | AM10: 5.223
D11: 撤去・新設 | E11: 24年 | O11: 5.935 | AK11: 5.935 | AL11: 593 | AM11: 6.528
B12: ③傾斜屋根
C13: シングル葺き
D14: 撤去・葺替
C15: 金属板葺き
B16: ④庇・笠木等防水 | E16: － | G16: ①から③に含む。
B17: ３ 床防水 | O17: 5.914 | AA17: 5.914 | AK17: 11.828 | AL17: 1.183 | AM17: 13.011
B18: ①バルコニー床防水 | O18: 2.394 | AA18: 2.394 | AK18: 4.788 | AL18: 479 | AM18: 5.267
B19: ②開放廊下・階段等床防水 | O19: 3.52 | AA19: 3.52 | AK19: 7.04 | AL19: 704 | AM19: 7.744
O20: 29.895 | AA20: 15.617 | AK20: 45.512 | AL20: 4.551 | AM20: 50.063
B21: ①躯体コンクリート補修 | G21: ②又は④に含む。
B22: ②外壁塗装（雨掛かり部分） | D22: 塗替 | AA22: 13.522 | AK22: 13.522 | AL22: 1.352 | AM22: 14.874
D23: 除去・塗装 | E23: 36年 | O23: 25.321 | AK23: 25.321 | AL23: 2.532 | AM23: 27.853
B24: ③外壁塗装（非雨掛かり部分） | G24: ②に含む。
B26: ④軒天塗装 | AA26: 2.095 | AK26: 2.095 | AL26: 209 | AM26: 2.304
O27: 4.574 | AK27: 4.574 | AL27: 457 | AM27: 5.032
B28: ⑤タイル張補修
B29: ⑥シーリング | D29: 打替
I30: 1.924 | O30: 1.59 | U30: 2.958 | AA30: 3.513 | AG30: 2.958 | AK30: 12.942 | AL30: 1.294 | AM30: 14.236
B31: ①鉄部塗装（雨掛かり部分）
C32: 開放廊下・階段の手すり | E32: 6年
C33: バルコニーの手すり
C34: 屋上フェンス等
C35: 屋外鉄骨階段 | O35: 944 | U35: 944 | AA35: 944 | AG35: 944 | AK35: 3.776 | AL35: 378 | AM35: 4.154
B36: ②鉄部塗装（非雨掛かり部分）
C37: 住戸玄関ドア | O37: 90 | U37: 90 | AA37: 90 | AG37: 90 | AK37: 359 | AL37: 36 | AM37: 395
C38: メーターボックスの扉等 | I38: 1.924 | U38: 1.924 | AA38: 1.924 | AG38: 1.924 | AK38: 7.695 | AL38: 770 | AM38: 8.465
B39: ③非鉄部塗装 | D39: 清掃・塗替 | O39: 556 | AA39: 556 | AK39: 1.112 | AL39: 111 | AM39: 1.223
I40: 62.027 | O40: 15.262 | U40: 898 | AK40: 78.187 | AL40: 7.819 | AM40: 86.005
B41: ①建具関係
C42: 住戸玄関ドア、窓サッシ等 | D42: 点検・調整 | I42: 898 | U42: 898 | AK42: 1.796 | AL42: 180 | AM42: 1.975
D43: 取替 | I43: 5.771 | AK43: 5.771 | AL43: 577 | AM43: 6.348
C44: 窓サッシ等 | I44: 22.487 | AK44: 22.487 | AL44: 2.249 | AM44: 24.735
B45: ②手すり
C46: 開放廊下・階段等の手すり | I46: 7.31 | AK46: 7.31 | AL46: 731 | AM46: 8.041
I47: 4.061 | AK47: 4.061 | AL47: 406 | AM47: 4.467
C48: 屋上フェンス等 | I48: 10.3 | AK48: 10.3 | AL48: 1.03 | AM48: 11.33
B49: ③屋外鉄骨階段 | G49: 計上しない
I50: 11.2 | AK50: 11.2 | AL50: 1.12 | AM50: 12.32
B51: ④金物類（集合郵便受等） | O51: 5.173 | AK51: 5.173 | AL51: 517 | AM51: 5.69
B52: ⑤金物類（ﾒｰﾀｰﾎﾞｯｸｽ扉等） | O52: 10.089 | AK52: 10.089 | AL52: 1.009 | AM52: 11.098
O53: 851 | AA53: 851 | AK53: 1.701 | AL53: 170 | AM53: 1.871
B54: ①共用内部 | D54: 張替・塗替 | O54: 851 | AA54: 851 | AK54: 1.701 | AL54: 170 | AM54: 1.871
A55: Ⅲ | I55: 2.797 | R55: 6.66 | Y55: 2.797 | AG55: 10.733 | AK55: 22.988 | AL55: 2.299 | AM55: 25.286
A56: 設備 | B56: ①給水管 | D56: 更生
E57: 30年 | AG57: 10.733 | AK57: 10.733 | AL57: 1.073 | AM57: 11.806
B58: ②貯水槽
C59: 受水槽 | E59: 25年 | R59: 6.66 | AK59: 6.66 | AL59: 666 | AM59: 7.326
C60: 高置水槽
B61: ③給水ポンプ
E62: 16年 | I62: 2.797 | Y62: 2.797 | AK62: 5.595 | AL62: 559 | AM62: 6.154
I63: 1.332 | Y63: 1.332 | AG63: 14.175 | AK63: 16.839 | AL63: 1.684 | AM63: 18.523
B64: ①排水管
AG65: 14.175 | AK65: 14.175 | AL65: 1.418 | AM65: 15.593
B66: ②排水ポンプ
I67: 1.332 | Y67: 1.332 | AK67: 2.664 | AL67: 266 | AM67: 2.931
AG68: 2.171 | AK68: 2.171 | AL68: 217 | AM68: 2.388
B69: ①ガス管 | AG69: 2.171 | AK69: 2.171 | AL69: 217 | AM69: 2.388
B70: 11 空調・換気設備 | R70: 1.107 | AG70: 1.107 | AK70: 2.214 | AL70: 221 | AM70: 2.435
B71: ①空調設備 | E71: 15年 | R71: 738 | AG71: 738 | AK71: 1.476 | AL71: 148 | AM71: 1.624
B72: ②換気設備 | R72: 369 | AG72: 369 | AK72: 738 | AL72: 74 | AM72: 812
R73: 2.754 | W73: 800 | AG73: 8.829 | AK73: 12.383 | AL73: 1.238 | AM73: 13.621
B74: ①電灯設備 | R74: 2.754 | AG74: 2.754 | AK74: 5.508 | AL74: 551 | AM74: 6.059
B75: ②配電盤類 | AG75: 3.645 | AK75: 3.645 | AL75: 365 | AM75: 4.01
B76: ③幹線設備 | AG76: 2.43 | AK76: 2.43 | AL76: 243 | AM76: 2.673
B77: ④避雷針設備 | E77: 40年 | W77: 800 | AK77: 800 | AL77: 80 | AM77: 880
B78: ⑤自家発電設備
R79: 7.165 | AG79: 7.849 | AK79: 15.015 | AL79: 1.501 | AM79: 16.516
B80: ①電話設備 | AG80: 684 | AK80: 684 | AL80: 68 | AM80: 752
B81: ②テレビ共聴設備 | R81: 1.993 | AG81: 1.993 | AK81: 3.985 | AL81: 399 | AM81: 4.384
B82: ③インターネット設備 | R82: 684 | AG82: 684 | AK82: 1.368 | AL82: 137 | AM82: 1.505
B83: ④インターホン設備等 | R83: 4.489 | AG83: 4.489 | AK83: 8.978 | AL83: 898 | AM83: 9.875
B84: 14 消防用設備 | R84: 4.059 | W84: 5.67 | AK84: 9.729 | AL84: 973 | AM84: 10.702
B85: ①屋内消火栓設備 | R85: 3.321 | AK85: 3.321 | AL85: 332 | AM85: 3.653
B86: ②自動火災報知設備 | E86: 20年 | W86: 5.67 | AK86: 5.67 | AL86: 567 | AM86: 6.237
B87: ③連結送水管設備 | R87: 738 | AK87: 738 | AL87: 74 | AM87: 812
B88: 15 昇降機設備 | R88: 813 | AG88: 13.986 | AK88: 14.799 | AL88: 1.48 | AM88: 16.278
B89: ①昇降機 | R89: 813 | AK89: 813 | AL89: 81 | AM89: 894
AG90: 13.986 | AK90: 13.986 | AL90: 1.399 | AM90: 15.385
B91: 16 立体駐車場設備
B92: ①自走式駐車場 | E92: 10年
D93: 建替
B94: ②機械式駐車場 | E94: 5年
A96: Ⅳ | B96: 17 外構・附属施設 | O96: 4.893 | AK96: 4.893 | AL96: 489 | AM96: 5.382
A97: 外構 | B97: ①外構 | D97: 補修、取替 | O97: 1.203 | AK97: 1.203 | AL97: 120 | AM97: 1.323
A98: ・そ | B98: ②附属施設 | D98: 取替、整備 | O98: 3.69 | AK98: 3.69 | AL98: 369 | AM98: 4.059
A99: の他 | B99: 18 調査・診断、設計、工事監理等費用 | M99: 3.321 | O99: 2.214 | Y99: 2.214 | AA99: 1.476 | AK99: 9.225 | AL99: 923 | AM99: 10.148
B100: ①点検・調査・診断 | M100: 3.321 | Y100: 2.214 | AK100: 5.535 | AL100: 554 | AM100: 6.089
B101: ②設計等 | G101: ①に含む。
B102: ③工事監理 | O102: 2.214 | AA102: 1.476 | AK102: 3.69 | AL102: 369 | AM102: 4.059
B103: ④臨時点検（被災時） | D103: 建物、設備、外観 | E103: 年
B104: 19 長期修繕計画作成費用 | I104: 517 | O104: 517 | U104: 517 | AA104: 517 | AG104: 517 | AK104: 2.583 | AL104: 258 | AM104: 2.841
B105: ①見直し | I105: 517 | O105: 517 | U105: 517 | AA105: 517 | AG105: 517 | AK105: 2.583 | AL105: 258 | AM105: 2.841
B106: 20 その他
B107: ①特殊施設1改修
B108: ②特殊施設2改修
B109: ③特殊施設3改修
B110: ④特殊施設4改修
A111: 小計 | I111: 68.597 | M111: 3.321 | O111: 82.459 | R111: 22.558 | U111: 4.372 | W111: 6.47 | Y111: 6.343 | AA111: 48.025 | AG111: 62.324 | AK111: 304.469 | AL111: 30.447 | AM111: 334.916
A112: 消費税 | I112: 6.86 | M112: 332 | O112: 8.246 | R112: 2.256 | U112: 437 | W112: 647 | Y112: 634 | AA112: 4.802 | AG112: 6.232
A113: 推定修繕工事費 年度合計 | G113: 0 | H113: 0 | I113: 75.457 | J113: 0 | K113: 0 | L113: 0 | M113: 3.653 | N113: 0 | O113: 90.705 | P113: 0 | Q113: 0 | R113: 24.814 | S113: 0 | T113: 0 | U113: 4.809 | V113: 0 | W113: 7.117 | X113: 0 | Y113: 6.978 | Z113: 0 | AA113: 52.827 | AB113: 0 | AC113: 0 | AD113: 0 | AE113: 0 | AF113: 0 | AG113: 68.556 | AH113: 0 | AI113: 0 | AJ113: 0
A114: 推定修繕工事費 累計 | G114: 0 | H114: 0 | I114: 75.457 | J114: 75.457 | K114: 75.457 | L114: 75.457 | M114: 79.11 | N114: 79.11 | O114: 169.815 | P114: 169.815 | Q114: 169.815 | R114: 194.629 | S114: 194.629 | T114: 194.629 | U114: 199.438 | V114: 199.438 | W114: 206.555 | X114: 206.555 | Y114: 213.533 | Z114: 213.533 | AA114: 266.36 | AB114: 266.36 | AC114: 266.36 | AD114: 266.36 | AE114: 266.36 | AF114: 266.36 | AG114: 334.916 | AH114: 334.916 | AI114: 334.916 | AJ114: 334.916
A115: （注）諸経費には「長期修繕計画作成ガイドライン」に示すとおり、現場管理費・一般管理費・法定福利費のほか、大規模修繕瑕疵保険の保険料なども見込んで修繕積立金額を検討することが重要です。

Sheet 工事費内訳書
A1: （様式4-4）推定修繕工事費内訳書 | D1: 作成日／ 年 月 日 集会（管理組合総会）で議決された日／ 年 月 日 | I1: （単位：円）
A2: 推定修繕工事項目 | C2: 対象部位等 | D2: 工事区分 | E2: 仕様等 | F2: 単位 | G2: 数量 | H2: AV単価 | I2: 金額 | J2: 修繕 | K2: 東棟集計 | N2: 西棟集計 | R2: 東棟 | AA2: 西棟 | AH2: 東棟集計 | AI2: 西棟集計
J3: 周期 | R3: 住宅 | U3: 店舗 | X3: フィットネス | AA3: 住宅 | AD3: 店舗 | AH3: =IFERROR(SUM(AH5:AH365), "") -> 16633935 | AI3: =IFERROR(SUM(AI5:AI365), "") -> 5075500 | AJ3: 工事費合計
A4: Ⅰ | B4: 1 仮設工事
A5: 仮設 | B5: ①共通仮設 | E5: 仮設事務所、資材置き場等 | I5: 6940000 | J5: 12年 | R5: 施設ごと集計
I6: =SUM(K6:P6) -> 128943892 | K6: =IFERROR(SUM(T6+W6+Z6), "") -> 99080340 | N6: =IFERROR(SUM(AC6+AF6), "") -> 29863552 | T6: =IFERROR(SUM(T8+T18+T28+T47+T69+T122+T231+T260+T268+T282), "") -> 63771623 | W6: =IFERROR(SUM(W8+W18+W28+W47+W69+W122+W231+W260+W268+W282), "") -> 12822650 | Z6: =IFERROR(SUM(Z8+Z18+Z28+Z47+Z69+Z122+Z231+Z260+Z268+Z282), "") -> 22486067 | AC6: =IFERROR(SUM(AC8+AC18+AC28+AC47+AC69+AC122+AC231+AC260+AC268+AC282), "") -> 22085439 | AF6: =IFERROR(SUM(AF8+AF18+AF28+AF47+AF69+AF122+AF231+AF260+AF268+AF282), "") -> 7778113
K7: 数量 | L7: AV単価 | M7: 金額 | N7: 数量 | O7: VA単価 | P7: 金額 | R7: 数量 | S7: 単価 | T7: 金額 | U7: 数量 | V7: 単価 | W7: 金額 | X7: 数量 | Y7: 単価 | Z7: 金額 | AA7: 数量 | AB7: 単価 | AC7: 金額 | AD7: 数量 | AE7: 単価 | AF7: 金額
A8: Ⅱ | B8: ②直接仮設 | E8: 枠組足場、養生シート等 | I8: =IFERROR(SUM(M8+P8), "") -> 34294760 | M8: =IFERROR(SUM(T8+W8+Z8), "") -> 26445700 | P8: =IFERROR(SUM(AC8+AF8), "") -> 7849060 | S8: 直接仮設計 | T8: 13056485 | W8: 3577450 | Z8: 9811765 | AC8: 5075500 | AF8: 2773560 | AH8: =IFERROR(SUM(S8:Y8), "") -> 16633935 | AI8: =IFERROR(SUM(AB8:AE8), "") -> 5075500
A9: 建築 | B9: 2 下地補修工事 | C9: マーキング調査費 | E9: 打診調査・資料作成 | F9: ｍ2 | G9: =IFERROR(SUM(K9+N9), "") -> 11853.4 | H9: =IFERROR(SUM(I9/G9), "") -> 50 | I9: =IFERROR(SUM(M9+P9), "") -> 592670 | K9: =IFERROR(SUM(R9+U9+X9), "") -> 9445.9 | L9: =IFERROR(SUM(M9/K9), "") -> 50 | M9: =IFERROR(SUM(T9+W9+Z9), "") -> 472295 | N9: =IFERROR(SUM(AA9+AD9), "") -> 2407.5 | O9: =IFERROR(SUM(P9/N9), "") -> 50 | P9: =IFERROR(SUM(AC9+AF9), "") -> 120375 | R9: 8820.1 | S9: 50 | T9: =IFERROR(SUM(R9*S9), "") -> 441005 | U9: 337 | V9: 50 | W9: =IFERROR(SUM(U9*V9), "") -> 16850 | X9: 288.8 | Y9: =IFERROR(SUM(S9), "") -> 50 | Z9: =IFERROR(SUM(X9*Y9), "") -> 14440 | AA9: 1955.6 | AB9: =IFERROR(SUM(S9), "") -> 50 | AC9: =IFERROR(SUM(AA9*AB9), "") -> 97780 | AD9: 451.9 | AE9: =IFERROR(SUM(S9), "") -> 50 | AF9: =IFERROR(SUM(AD9*AE9), "") -> 22595
Y10: 0 | AB10: 0 | AE10: 0
C11: クラック補修 | E11: 0.5ｍｍ未満 フィラー刷り込み | G11: =IFERROR(SUM(K11+N11), "") -> 1778 | H11: =IFERROR(SUM(I11/G11), "") -> 250 | I11: =IFERROR(SUM(M11+P11), "") -> 444500 | K11: =IFERROR(SUM(R11+U11+X11), "") -> 1416.9 | L11: =IFERROR(SUM(M11/K11), "") -> 250 | M11: =IFERROR(SUM(T11+W11+Z11), "") -> 354225 | N11: =IFERROR(SUM(AA11+AD11), "") -> 361.1 | O11: =IFERROR(SUM(P11/N11), "") -> 250 | P11: =IFERROR(SUM(AC11+AF11), "") -> 90275 | R11: 1323 | S11: 250 | T11: =IFERROR(SUM(R11*S11), "") -> 330750 | U11: 50.6 | V11: 250 | W11: =IFERROR(SUM(U11*V11), "") -> 12650 | X11: 43.3 | Y11: 250 | Z11: =IFERROR(SUM(X11*Y11), "") -> 10825 | AA11: 293.3 | AB11: 250 | AC11: =IFERROR(SUM(AA11*AB11), "") -> 73325 | AD11: 67.8 | AE11: 250 | AF11: =IFERROR(SUM(AD11*AE11), "") -> 16950
C12: クラック補修 | E12: 0.5ｍｍ以上低圧注入工法 | G12: 177.7 | H12: 1600 | I12: 284320 | K12: 141.6 | L12: 1600 | M12: 226560 | N12: 36.1 | O12: 1600 | P12: 57760 | R12: 132.3 | S12: 1600 | T12: 211680 | U12: 5 | V12: 1600 | W12: 8000 | X12: 4.3 | Y12: 1600 | Z12: 6880 | AA12: 29.3 | AB12: 1600 | AC12: 46880 | AD12: 6.8 | AE12: 1600 | AF12: 10880
C13: クラック補修 | E13: 0.5ｍｍ以上Ｕカットシーリング充填処理 | G13: 237 | H13: 1300 | I13: 308100 | K13: 188.9 | L13: 1300 | M13: 245570 | N13: 48.1 | O13: 1300 | P13: 62530 | R13: 176.4 | S13: 1300 | T13: 229320 | U13: 6.7 | V13: 1300 | W13: 8710 | X13: 5.8 | Y13: 1300 | Z13: 7540 | AA13: 39.1 | AB13: 1300 | AC13: 50830 | AD13: 9 | AE13: 1300 | AF13: 11700
C14: コンクリート・モルタル浮き処理 | E14: SUSピン併用樹脂注入工法 25pin | G14: 210.9 | H14: 4000 | I14: 843600 | K14: 141.6 | L14: 4000 | M14: 566400 | N14: 69.3 | O14: 4000 | P14: 277200 | R14: 132.3 | S14: 4000 | T14: 529200 | U14: 5 | V14: 4000 | W14: 20000 | X14: 4.3 | Y14: 4000 | Z14: 17200 | AA14: 29.3 | AB14: 4000 | AC14: 117200 | AD14: 40 | AE14: 4000 | AF14: 160000
C15: コンクリート・モルタル露筋・欠損処理 | E15: 撤去、錆止樹脂モルタル成形 | G15: 442 | H15: 1200 | I15: 530400 | K15: 308 | L15: 1200 | M15: 369600 | N15: 134 | O15: 1200 | P15: 160800 | R15: 248 | S15: 1200 | T15: 297600 | U15: 30 | V15: 1200 | W15: 36000 | X15: 30 | Y15: 1200 | Z15: 36000 | AA15: 124 | AB15: 1200 | AC15: 148800 | AD15: 10 | AE15: 1200 | AF15: 12000
C16: 塗膜浮き・捲れ | E16: 樹脂モルタル修正 | G16: 118.4 | H16: 1600 | I16: 189440 | K16: 94.3 | L16: 1600 | M16: 150880 | N16: 24.1 | O16: 1600 | P16: 38560 | R16: 88 | S16: 1600 | T16: 140800 | U16: 3.4 | V16: 1600 | W16: 5440 | X16: 2.9 | Y16: 1600 | Z16: 4640 | AA16: 19.6 | AB16: 1600 | AC16: 31360 | AD16: 4.5 | AE16: 1600 | AF16: 7200
C17: パターン調整 | G17: 5 | H17: 86000 | I17: 430000 | K17: 3 | L17: 106666.6667 | M17: 320000 | N17: 2 | O17: 55000 | P17: 110000 | R17: 1 | S17: 160000 | T17: 160000 | U17: 1 | V17: 100000 | W17: 100000 | X17: 1 | Y17: 60000 | Z17: 60000 | AA17: 1 | AB17: 60000 | AC17: 60000 | AD17: 1 | AE17: 50000 | AF17: 50000
I18: 3623030 | M18: 2705530 | P18: 917500 | S18: 下地補修工事計 | T18: =IFERROR(SUM(T9:T17), "") -> 2340355 | V18: 計 | W18: =IFERROR(SUM(W9:W17), "") -> 207650 | Y18: 計 | Z18: =IFERROR(SUM(Z9:Z17), "") -> 157525 | AB18: 計 | AC18: =IFERROR(SUM(AC9:AC17), "") -> 626175 | AE18: 計 | AF18: =IFERROR(SUM(AF9:AF17), "") -> 291325
Y19: =IFERROR(SUM(S19), "") -> 0 | AB19: =IFERROR(SUM(S19), "") -> 0 | AE19: =IFERROR(SUM(S19), "") -> 0
B20: 3 石・タイル工事 | C20: マーキング調査費 | E20: 打診調査・資料作成 | G20: =IFERROR(SUM(K20+N20), "") -> 10131.6 | H20: =IFERROR(SUM(I20/G20), "") -> 50 | I20: =IFERROR(SUM(M20+P20), "") -> 506580 | K20: =IFERROR(SUM(R20+U20+X20), "") -> 7643 | L20: =IFERROR(SUM(M20/K20), "") -> 50 | M20: =IFERROR(SUM(T20+W20+Z20), "") -> 382150 | N20: =IFERROR(SUM(AA20+AD20), "") -> 2488.6 | O20: =IFERROR(SUM(P20/N20), "") -> 50 | P20: =IFERROR(SUM(AC20+AF20), "") -> 124430 | R20: 4155 | S20: 50 | T20: =IFERROR(SUM(R20*S20), "") -> 207750 | U20: 1395 | V20: =IFERROR(SUM(S20), "") -> 50 | W20: =IFERROR(SUM(U20*V20), "") -> 69750 | X20: 2093 | Y20: 50 | Z20: =IFERROR(SUM(X20*Y20), "") -> 104650 | AA20: 1630 | AB20: 50 | AC20: =IFERROR(SUM(AA20*AB20), "") -> 81500 | AD20: 858.6 | AE20: 50 | AF20: =IFERROR(SUM(AD20*AE20), "") -> 42930
G21: 0 | I21: 0 | K21: 0 | M21: 0 | N21: 0 | P21: 0 | S21: 0 | Y21: 0 | AB21: 0 | AE21: 0
C22: タイル補修 | E22: 近似品 | G22: 0 | I22: 0 | K22: 0 | M22: 0 | N22: 0 | P22: 0 | S22: 0 | Y22: 0 | AB22: 0 | AE22: 0
C23: 割れ欠けぶ貼替 | E23: 材料費 | G23: 72.5 | H23: 25000 | I23: 1812500 | K23: 55.9 | L23: 25000 | M23: 1397500 | N23: 16.6 | O23: 25000 | P23: 415000 | R23: 21 | S23: 25000 | T23: =IFERROR(SUM(R23*S23), "") -> 525000 | U23: 14 | V23: =IFERROR(SUM(S23), "") -> 25000 | W23: =IFERROR(SUM(U23*V23), "") -> 350000 | X23: 20.9 | Y23: 25000 | Z23: =IFERROR(SUM(X23*Y23), "") -> 522500 | AA23: 8.1 | AB23: 25000 | AC23: =IFERROR(SUM(AA23*AB23), "") -> 202500 | AD23: 8.5 | AE23: 25000 | AF23: =IFERROR(SUM(AD23*AE23), "") -> 212500
C24: 浮き部貼替 | E24: 材料費 | G24: 72.6 | H24: 25000 | I24: 1815000 | K24: 55.9 | L24: 25000 | M24: 1397500 | N24: 16.7 | O24: 25000 | P24: 417500 | R24: 21 | S24: 25000 | T24: =IFERROR(SUM(R24*S24), "") -> 525000 | U24: 14 | V24: =IFERROR(SUM(S24), "") -> 25000 | W24: =IFERROR(SUM(U24*V24), "") -> 350000 | X24: 20.9 | Y24: 25000 | Z24: =IFERROR(SUM(X24*Y24), "") -> 522500 | AA24: 8.2 | AB24: 25000 | AC24: =IFERROR(SUM(AA24*AB24), "") -> 205000 | AD24: 8.5 | AE24: 25000 | AF24: =IFERROR(SUM(AD24*AE24), "") -> 212500
C25: 施工費 | E25: 施工費 | G25: 145.1 | H25: 25000 | I25: 3627500 | K25: 111.8 | L25: 25000 | M25: 2795000 | N25: 33.3 | O25: 25000 | P25: 832500 | R25: 42 | S25: 25000 | T25: =IFERROR(SUM(R25*S25), "") -> 1050000 | U25: 28 | V25: =IFERROR(SUM(S25), "") -> 25000 | W25: =IFERROR(SUM(U25*V25), "") -> 700000 | X25: 41.8 | Y25: 25000 | Z25: =IFERROR(SUM(X25*Y25), "") -> 1045000 | AA25: 16.3 | AB25: 25000 | AC25: =IFERROR(SUM(AA25*AB25), "") -> 407500 | AD25: 17 | AE25: 25000 | AF25: =IFERROR(SUM(AD25*AE25), "") -> 425000
G26: 0 | I26: 0 | K26: 0 | M26: 0 | N26: 0 | P26: 0 | V26: =IFERROR(SUM(S26), "") -> 0 | Y26: 0 | AB26: 0 | AE26: 0
C27: 浮き部エポキシ樹脂注入 | G27: 303.8 | H27: 5300 | I27: 1610140 | K27: 229.2 | L27: 5300 | M27: 1214760 | N27: 74.6 | O27: 5300 | P27: 395380 | R27: 124.6 | S27: 5300 | T27: =IFERROR(SUM(R27*S27), "") -> 660380 | U27: 41.8 | V27: =IFERROR(SUM(S27), "") -> 5300 | W27: =IFERROR(SUM(U27*V27), "") -> 221540 | X27: 62.8 | Y27: 5300 | Z27: =IFERROR(SUM(X27*Y27), "") -> 332840 | AA27: 48.9 | AB27: 5300 | AC27: =IFERROR(SUM(AA27*AB27), "") -> 259170 | AD27: 25.7 | AE27: 5300 | AF27: =IFERROR(SUM(AD27*AE27), "") -> 136210
I28: 9371720 | M28: 7186910 | P28: 2184810 | S28: 石・タイル工事計 | T28: =IFERROR(SUM(T20:T27), "") -> 2968130 | V28: 計 | W28: =IFERROR(SUM(W20:W27), "") -> 1691290 | Y28: 計 | Z28: =IFERROR(SUM(Z20:Z27), "") -> 2527490 | AB28: 計 | AC28: =IFERROR(SUM(AC20:AC27), "") -> 1155670 | AE28: 計 | AF28: =IFERROR(SUM(AF20:AF27), "") -> 1029140
Y29: =IFERROR(SUM(S29), "") -> 0 | AB29: =IFERROR(SUM(S29), "") -> 0 | AE29: =IFERROR(SUM(S29), "") -> 0
B30: 4 シーリング工事 | C30: 塗装面打ち継ぎ目地 | D30: 打替 | E30: 20*10ポリウレタンノンブリード | G30: =IFERROR(SUM(K30+N30), "") -> 179.2 | H30: =IFERROR(SUM(I30/G30), "") -> 700 | I30: =IFERROR(SUM(M30+P30), "") -> 125440 | K30: =IFERROR(SUM(R30+U30+X30), "") -> 115.2 | L30: =IFERROR(SUM(M30/K30), "") -> 700 | M30: =IFERROR(SUM(T30+W30+Z30), "") -> 80640 | N30: =IFERROR(SUM(AA30+AD30), "") -> 64 | O30: =IFERROR(SUM(P30/N30), "") -> 700 | P30: =IFERROR(SUM(AC30+AF30), "") -> 44800 | R30: 115.2 | S30: 700 | T30: =IFERROR(SUM(R30*S30), "") -> 80640 | AA30: 64 | AB30: =IFERROR(SUM(S30), "") -> 700 | AC30: =IFERROR(SUM(AA30*AB30), "") -> 44800 | AE30: =IFERROR(SUM(S30), "") -> 700 | AF30: =IFERROR(SUM(AD30*AE30), "") -> 0
C31: 塗装面伸縮目地 | D31: 打替 | E31: 20*10ポリウレタンノンブリード | G31: 631 | H31: 700 | I31: 441700 | K31: 594 | L31: 700 | M31: 415800 | N31: 37 | O31: 700 | P31: 25900 | R31: 594 | S31: 700 | T31: =IFERROR(SUM(R31*S31), "") -> 415800 | AA31: 37 | AB31: =IFERROR(SUM(S31), "") -> 700 | AC31: =IFERROR(SUM(AA31*AB31), "") -> 25900 | AE31: =IFERROR(SUM(S31), "") -> 700 | AF31: =IFERROR(SUM(AD31*AE31), "") -> 0
C32: カーテンウォール廻り | G32: 1492 | H32: 650 | I32: 969800 | K32: 1492 | L32: 650 | M32: 969800 | N32: 0 | P32: 0 | X32: 1492 | Y32: 650 | Z32: =IFERROR(SUM(X32*Y32), "") -> 969800
C33: アルミパネル廻り | G33: 0 | I33: 0 | K33: 0 | M33: 0 | N33: 0 | P33: 0
C34: アルミパネル目地 | E34: 20*10変性シリコン | G34: 904.2 | H34: 700 | I34: 632940 | K34: 613 | L34: 700 | M34: 429100 | N34: 291.2 | O34: 700 | P34: 203840 | U34: 227 | V34: 700 | W34: =IFERROR(SUM(U34*V34), "") -> 158900 | X34: 386 | Y34: 700 | Z34: =IFERROR(SUM(X34*Y34), "") -> 270200 | AA34: 176 | AB34: 700 | AC34: =IFERROR(SUM(AA34*AB34), "") -> 123200 | AD34: 115.2 | AE34: 700 | AF34: =IFERROR(SUM(AD34*AE34), "") -> 80640
C35: タイル面打ち継ぎ目地 | D35: 打替 | E35: 20*10変性シリコン | G35: 1760.8 | H35: 700 | I35: 1232560 | K35: 965 | L35: 700 | M35: 675500 | N35: 795.8 | O35: 700 | P35: 557060 | R35: 522 | S35: 700 | T35: =IFERROR(SUM(R35*S35), "") -> 365400 | U35: 207 | V35: =IFERROR(SUM(S35), "") -> 700 | W35: 144900 | X35: 236 | Y35: =IFERROR(SUM(S35), "") -> 700 | Z35: 165200 | AA35: 568.4 | AB35: =IFERROR(SUM(S35), "") -> 700 | AC35: 397880 | AD35: 227.4 | AE35: =IFERROR(SUM(S35), "") -> 700 | AF35: 159180
C36: タイル面伸縮目地 | D36: 打替 | E36: 20*10変性シリコン | G36: 1578.5 | H36: 700 | I36: 1104950 | K36: 1454.5 | L36: 700 | M36: 1018150 | N36: 124 | O36: 700 | P36: 86800 | R36: 944 | S36: 700 | T36: 660800 | U36: 132 | V36: 700 | W36: 92400 | X36: 378.5 | Y36: =IFERROR(SUM(S36), "") -> 700 | Z36: 264950 | AA36: 96 | AB36: 700 | AC36: 67200 | AD36: 28 | AE36: 700 | AF36: 19600
C37: タイル面取り合い部目地 | D37: 打替 | E37: 20*10ポリウレタンノンブリード | G37: 644.3 | H37: 630 | I37: 405909 | K37: 533 | L37: 630 | M37: 335790 | N37: 111.3 | O37: 630 | P37: 70119 | R37: 384 | S37: 630 | T37: 241920 | U37: 48 | V37: 630 | W37: 30240 | X37: 101 | Y37: =IFERROR(SUM(S37), "") -> 630 | Z37: 63630 | AA37: 93.3 | AB37: 630 | AC37: 58779 | AD37: 18 | AE37: 630 | AF37: 11340
C38: AL建具廻り | D38: 打替 | E38: 20*10変性シリコン | G38: 3593.5 | H38: 630 | I38: 2263905 | K38: 2789.3 | L38: 630 | M38: 1757259 | N38: 804.2 | O38: 630 | P38: 506646 | R38: 2166.4 | S38: 630 | T38: 1364832 | U38: 378 | V38: 630 | W38: 238140 | X38: 244.9 | Y38: =IFERROR(SUM(S38), "") -> 630 | Z38: 154287 | AA38: 336 | AB38: 630 | AC38: 211680 | AD38: 468.2 | AE38: 630 | AF38: 294966
C39: 鋼製建具廻り | D39: 打替 | E39: 20*10変性シリコン | G39: 1755.1 | H39: 630 | I39: 1105713 | K39: 1341.7 | L39: 630 | M39: 845271 | N39: 413.4 | O39: 630 | P39: 260442 | R39: 1184.2 | S39: 630 | T39: 746046 | U39: 123 | V39: 630 | W39: 77490 | X39: 34.5 | Y39: =IFERROR(SUM(S39), "") -> 630 | Z39: 21735 | AA39: 215.2 | AB39: 630 | AC39: 135576 | AD39: 198.2 | AE39: 630 | AF39: 124866
C40: EXP.J廻り | D40: 打替 | E40: 20*10ポリウレタンノンブリード | G40: 323 | H40: 700 | I40: 226100 | K40: 312 | L40: 700 | M40: 218400 | N40: 11 | O40: 700 | P40: 7700 | R40: 264 | S40: 700 | T40: 184800 | U40: 48 | V40: 700 | W40: 33600 | AA40: 11 | AB40: 700 | AC40: 7700 | AE40: 700 | AF40: 0
C41: 手すり根元廻り | G41: 2009 | H41: 300 | I41: 602700 | K41: 1554 | L41: 300 | M41: 466200 | N41: 455 | O41: 300 | P41: 136500 | R41: 1512 | S41: 300 | T41: 453600 | U41: 42 | V41: 300 | W41: 12600 | AA41: 425 | AB41: 300 | AC41: 127500 | AD41: 30 | AE41: 300 | AF41: 9000
C42: 喚起フード周囲 | E42: 三角シーリング | G42: 3 | H42: 15000 | I42: 45000 | K42: 2 | L42: 15000 | M42: 30000 | N42: 1 | O42: 15000 | P42: 15000 | U42: 1 | V42: 15000 | W42: 15000 | X42: 1 | Y42: 15000 | Z42: =IFERROR(SUM(X42*Y42), "") -> 15000 | AD42: 1 | AE42: 15000 | AF42: 15000
C43: ベンドキャップ周囲 | G43: 250 | H43: 450 | I43: 112500 | K43: 190 | L43: 450 | M43: 85500 | N43: 60 | O43: 450 | P43: 27000 | R43: 190 | S43: 450 | T43: =IFERROR(SUM(R43*S43), "") -> 85500 | W43: 0 | AA43: 60 | AB43: =IFERROR(SUM(S43), "") -> 450 | AC43: =IFERROR(SUM(AA43*AB43), "") -> 27000 | AE43: =IFERROR(SUM(S43), "") -> 450 | AF43: 0
C44: 避難ハッチ廻り | G44: 10 | H44: 2200 | I44: 22000 | K44: 3 | L44: 2200 | M44: 6600 | N44: 7 | O44: 2200 | P44: 15400 | R44: 3 | S44: 2200 | T44: =IFERROR(SUM(R44*S44), "") -> 6600 | AA44: 5 | AB44: =IFERROR(SUM(S44), "") -> 2200 | AC44: =IFERROR(SUM(AA44*AB44), "") -> 11000 | AD44: 2 | AE44: =IFERROR(SUM(S44), "") -> 2200 | AF44: 4400
C45: 竪樋支持金物廻り | G45: 1041 | H45: 250 | I45: 260250 | K45: 711 | L45: 250 | M45: 177750 | N45: 330 | O45: 250 | P45: 82500 | R45: 575 | S45: 250 | T45: =IFERROR(SUM(R45*S45), "") -> 143750 | U45: 82 | V45: =IFERROR(SUM(S45), "") -> 250 | W45: =IFERROR(SUM(U45*V45), "") -> 20500 | X45: 54 | Y45: =IFERROR(SUM(S45), "") -> 250 | Z45: =IFERROR(SUM(X45*Y45), "") -> 13500 | AA45: 210 | AB45: =IFERROR(SUM(S45), "") -> 250 | AC45: =IFERROR(SUM(AA45*AB45), "") -> 52500 | AD45: 120 | AE45: =IFERROR(SUM(S45), "") -> 250 | AF45: 30000
C46: その他シーリング | G46: 5 | H46: 56000 | I46: 280000 | K46: 3 | L46: 46666.66667 | M46: 140000 | N46: 2 | O46: 70000 | P46: 140000 | R46: 1 | S46: 100000 | T46: =IFERROR(SUM(R46*S46), "") -> 100000 | U46: 1 | V46: 20000 | W46: =IFERROR(SUM(U46*V46), "") -> 20000 | X46: 1 | Y46: 20000 | Z46: =IFERROR(SUM(X46*Y46), "") -> 20000 | AA46: 1 | AB46: =IFERROR(SUM(S46), "") -> 100000 | AC46: =IFERROR(SUM(AA46*AB46), "") -> 100000 | AD46: 1 | AE46: 40000 | AF46: 40000
I47: 9831467 | M47: 7651760 | P47: 2179707 | S47: シーリング工事計 | T47: =IFERROR(SUM(T30:T46), "") -> 4849688 | V47: 計 | W47: =IFERROR(SUM(W30:W46), "") -> 843770 | Y47: 計 | Z47: =IFERROR(SUM(Z30:Z46), "") -> 1958302 | AB47: 計 | AC47: =IFERROR(SUM(AC30:AC46), "") -> 1390715 | AE47: 計 | AF47: =IFERROR(SUM(AF30:AF46), "") -> 788992
V48: =IFERROR(SUM(S48), "") -> 0 | Y48: =IFERROR(SUM(S48), "") -> 0 | AB48: =IFERROR(SUM(S48), "") -> 0 | AE48: =IFERROR(SUM(S48), "") -> 0
B49: 5 塗装工事 | C49: a.外壁塗装 | I49: =IFERROR(SUM(G49*H49), "") -> 0 | M49: =IFERROR(SUM(T49+W49+Z49), "") -> 0 | V49: =IFERROR(SUM(S49), "") -> 0 | Y49: =IFERROR(SUM(S49), "") -> 0 | AB49: 0 | AE49: 0
C50: バルコニー面 | E50: 関西ペイント アキレスホルダーGⅡ コスモシリコン2回塗り | G50: =IFERROR(SUM(K50+N50), "") -> 3437 | H50: =IFERROR(SUM(I50/G50), "") -> 980 | I50: =IFERROR(SUM(M50+P50), "") -> 3368260 | K50: =IFERROR(SUM(R50+U50+X50), "") -> 3269 | L50: =IFERROR(SUM(M50/K50), "") -> 980 | M50: 3203620 | N50: =IFERROR(SUM(AA50+AD50), "") -> 168 | O50: =IFERROR(SUM(P50/N50), "") -> 980 | P50: =IFERROR(SUM(AC50+AF50), "") -> 164640 | R50: 3083 | S50: 980 | T50: =IFERROR(SUM(R50*S50), "") -> 3021340 | U50: 186 | V50: =IFERROR(SUM(S50), "") -> 980 | W50: =IFERROR(SUM(U50*V50), "") -> 182280 | AA50: 168 | AB50: 980 | AC50: =IFERROR(SUM(AA50*AB50), "") -> 164640 | AE50: 980 | AF50: =IFERROR(SUM(AD50*AE50), "") -> 0
C51: バルコニー面手摺壁 | E51: 関西ペイント アキレスホルダーGⅡ コスモシリコン2回塗り | G51: 828.4 | H51: 980 | I51: 811832 | K51: 648 | L51: 980 | M51: 635040 | N51: 180.4 | O51: 980 | P51: 176792 | R51: 648 | S51: 980 | T51: 635040 | AA51: 164.9 | AB51: 980 | AC51: 161602 | AD51: 15.5 | AE51: 980 | AF51: 15190
C52: 廊下面 | E52: 関西ペイント アキレスホルダーGⅡ コスモシリコン2回塗り | G52: 2058.8 | H52: 980 | I52: 2017624 | K52: 1247.8 | L52: 980 | M52: 1222844 | N52: 811 | O52: 980 | P52: 794780 | R52: 1247.8 | S52: 980 | T52: 1222844 | AA52: 678.5 | AB52: 980 | AC52: 664930 | AD52: 132.5 | AE52: 980 | AF52: 129850
C53: 廊下手摺壁 | E53: 関西ペイント アキレスホルダーGⅡ コスモシリコン2回塗り | G53: 879 | H53: 980 | I53: 861420 | K53: 660 | L53: 980 | M53: 646800 | N53: 219 | O53: 980 | P53: 214620 | R53: 660 | S53: 980 | T53: 646800 | AA53: 219 | AB53: 980 | AC53: 214620 | AE53: 980 | AF53: 0
C54: 階段壁・支持壁 | E54: 関西ペイント アキレスホルダーGⅡ コスモシリコン2回塗り | G54: 876.2 | H54: 980 | I54: 858676 | K54: 713 | L54: 980 | M54: 698740 | N54: 163.2 | O54: 980 | P54: 159936 | R54: 713 | S54: 980 | T54: 698740 | AB54: 980 | AC54: 0 | AD54: 163.2 | AE54: 980 | AF54: 159936
C55: 吹抜け梁型 | E55: 関西ペイント アキレスホルダーGⅡ コスモシリコン2回塗り | G55: 153.5 | H55: 980 | I55: 150430 | K55: 99 | L55: 980 | M55: 97020 | N55: 54.5 | O55: 980 | P55: 53410 | R55: 99 | S55: 980 | T55: 97020 | AA55: 54.5 | AB55: 980 | AC55: 53410 | AE55: 980 | AF55: 0
C56: 吹抜け梁天端（塗装面） | E56: 関西ペイント アキレスホルダーGⅡ コスモシリコン2回塗り | G56: 27.8 | H56: 1100 | I56: 30580 | K56: 22.5 | L56: 1100 | M56: 24750 | N56: 5.3 | O56: 1100 | P56: 5830 | R56: 22.5 | S56: 1100 | T56: 24750 | AA56: 5.3 | AB56: 1100 | AC56: 5830 | AE56: 1100 | AF56: 0
C57: 吹抜け梁天端（タイル面） | E57: RCガーデックス | G57: 63.5 | H57: 2200 | I57: 139700 | K57: 54 | L57: 2200 | M57: 118800 | N57: 9.5 | O57: 2200 | P57: 20900 | R57: 21.2 | S57: 2200 | T57: 46640 | U57: 16 | V57: =IFERROR(SUM(S57), "") -> 2200 | W57: =IFERROR(SUM(U57*V57), "") -> 35200 | X57: 16.8 | Y57: =IFERROR(SUM(S57), "") -> 2200 | Z57: =IFERROR(SUM(X57*Y57), "") -> 36960 | AA57: 9.5 | AB57: 2200 | AC57: 20900 | AE57: 2200 | AF57: 0
C58: ジョリパット面 | E58: アイカ ジョリパットシーラー他 | G58: 49 | H58: 2000 | I58: 98000 | K58: 0 | M58: 0 | N58: 49 | O58: 2000 | P58: 98000 | AA58: 49 | AB58: 2000 | AC58: 98000
C59: モルタル巾木 | E59: シリコンガード | G59: 1 | H59: 35000 | I59: 35000 | K59: 0 | M59: 0 | N59: 1 | O59: 35000 | P59: 35000 | AA59: 1 | AB59: 35000 | AC59: 35000
C60: テラス面 | D60: フィットネス | E60: 関西ペイント アキレスホルダーGⅡ コスモシリコン2回塗り | G60: 240 | H60: 980 | I60: 235200 | K60: 240 | L60: 980 | M60: 235200 | N60: 0 | P60: 0 | V60: =IFERROR(SUM(S60), "") -> 0 | X60: 240 | Y60: 980 | Z60: =IFERROR(SUM(X60*Y60), "") -> 235200 | AB60: =IFERROR(SUM(S60), "") -> 0 | AE60: =IFERROR(SUM(S60), "") -> 0 | AF60: =IFERROR(SUM(AD60*AE60), "") -> 0
G61: 0 | I61: 0 | K61: 0 | M61: 0 | N61: 0 | P61: 0
C62: 共用部廊下天井 | E62: 関西ペイント アレスセラマイルド2回塗り | G62: 1537.2 | H62: 650 | I62: 999180 | K62: 1198 | L62: 650 | M62: 778700 | N62: 339.2 | O62: 650 | P62: 220480 | R62: 1198 | S62: 650 | T62: =IFERROR(SUM(R62*S62), "") -> 778700 | AA62: 251.9 | AB62: =IFERROR(SUM(S62), "") -> 650 | AC62: =IFERROR(SUM(AA62*AB62), "") -> 163735 | AD62: 87.3 | AE62: =IFERROR(SUM(S62), "") -> 650 | AF62: =IFERROR(SUM(AD62*AE62), "") -> 56745
C63: バルコニー天井・上裏 | E63: 関西ペイント アレスセラマイルド2回塗り | G63: 1080 | H63: 650 | I63: 702000 | K63: 850 | L63: 650 | M63: 552500 | N63: 230 | O63: 650 | P63: 149500 | R63: 710 | S63: 650 | T63: =IFERROR(SUM(R63*S63), "") -> 461500 | U63: 108 | V63: =IFERROR(SUM(S63), "") -> 650 | W63: =IFERROR(SUM(U63*V63), "") -> 70200 | X63: 32 | Y63: =IFERROR(SUM(S63), "") -> 650 | Z63: =IFERROR(SUM(X63*Y63), "") -> 20800 | AA63: 210 | AB63: =IFERROR(SUM(S63), "") -> 650 | AC63: =IFERROR(SUM(AA63*AB63), "") -> 136500 | AD63: 20 | AE63: =IFERROR(SUM(S63), "") -> 650 | AF63: =IFERROR(SUM(AD63*AE63), "") -> 13000
C64: ピロティ天井 | E64: 関西ペイント アレスセラマイルド2回塗り | G64: 27 | H64: 650 | I64: 17550 | K64: 27 | L64: 650 | M64: 17550 | N64: 0 | P64: 0 | U64: 27 | V64: 650 | W64: =IFERROR(SUM(U64*V64), "") -> 17550
C65: 庇上裏 | E65: 関西ペイント アレスセラマイルド2回塗り | G65: 234.6 | H65: 650 | I65: 152490 | K65: 192.6 | L65: 650 | M65: 125190 | N65: 42 | O65: 650 | P65: 27300 | R65: 192.6 | S65: 650 | T65: =IFERROR(SUM(R65*S65), "") -> 125190 | AA65: 42 | AB65: =IFERROR(SUM(S65), "") -> 650 | AC65: =IFERROR(SUM(AA65*AB65), "") -> 27300 | AE65: =IFERROR(SUM(S65), "") -> 650 | AF65: =IFERROR(SUM(AD65*AE65), "") -> 0
C66: 階段上裏 | E66: 関西ペイント アレスセラマイルド2回塗り | G66: 361.4 | H66: 650 | I66: 234910 | K66: 225 | L66: 650 | M66: 146250 | N66: 136.4 | O66: 650 | P66: 88660 | R66: 225 | S66: 650 | T66: =IFERROR(SUM(R66*S66), "") -> 146250 | AA66: 103 | AB66: =IFERROR(SUM(S66), "") -> 650 | AC66: =IFERROR(SUM(AA66*AB66), "") -> 66950 | AD66: 33.4 | AE66: =IFERROR(SUM(S66), "") -> 650 | AF66: =IFERROR(SUM(AD66*AE66), "") -> 21710
C67: 照明器具及び各戸表札の脱着費 | G67: 0 | I67: 0 | K67: 0 | M67: 0 | N67: 0 | P67: 0 | S67: 0 | V67: =IFERROR(SUM(S67), "") -> 0 | Y67: =IFERROR(SUM(S67), "") -> 0 | AB67: =IFERROR(SUM(S67), "") -> 0 | AC67: =IFERROR(SUM(AA67*AB67), "") -> 0 | AE67: =IFERROR(SUM(S67), "") -> 0 | AF67: =IFERROR(SUM(AD67*AE67), "") -> 0
C68: 外壁タイル | E68: 艶塗装 ファイングラシィSi | G68: 10053 | H68: 930 | I68: 9349290 | K68: 7643 | L68: 930 | M68: 7107990 | N68: 2410 | O68: 930 | P68: 2241300 | R68: 4155 | S68: 930 | T68: =IFERROR(SUM(R68*S68), "") -> 3864150 | U68: 1395 | V68: =IFERROR(SUM(S68), "") -> 930 | W68: =IFERROR(SUM(U68*V68), "") -> 1297350 | X68: 2093 | Y68: =IFERROR(SUM(S68), "") -> 930 | Z68: =IFERROR(SUM(X68*Y68), "") -> 1946490 | AA68: 2410 | AB68: =IFERROR(SUM(S68), "") -> 930 | AC68: =IFERROR(SUM(AA68*AB68), "") -> 2241300 | AE68: =IFERROR(SUM(S68), "") -> 930 | AF68: =IFERROR(SUM(AD68*AE68), "") -> 0
I69: 20062142 | M69: 15610994 | P69: 4451148 | S69: 外壁塗装工事計 | T69: =IFERROR(SUM(T50:T68), "") -> 11768964 | V69: 計 | W69: =IFERROR(SUM(W50:W68), "") -> 1602580 | Y69: 計 | Z69: =IFERROR(SUM(Z50:Z68), "") -> 2239450 | AB69: 計 | AC69: =IFERROR(SUM(AC50:AC68), "") -> 4054717 | AE69: 計 | AF69: =IFERROR(SUM(AF50:AF68), "") -> 396431
V70: =IFERROR(SUM(S70), "") -> 0 | Y70: =IFERROR(SUM(S70), "") -> 0 | AB70: =IFERROR(SUM(S70), "") -> 0 | AE70: =IFERROR(SUM(S70), "") -> 0
C71: b.鉄部塗装 | K71: =IFERROR(SUM(R71+U71+X71), "") -> 0 | L71: =IFERROR(SUM(M71/K71), "") ->  | M71: =IFERROR(SUM(T71+W71+Z71), "") -> 0 | N71: =IFERROR(SUM(AA71+AD71), "") -> 0 | O71: =IFERROR(SUM(P71/N71), "") ->  | P71: =IFERROR(SUM(AC71+AF71), "") -> 0 | V71: 0 | Y71: 0 | AB71: 0 | AE71: 0
C72: 玄関ドア（枠・見え掛り部） | E72: 850*1930 | F72: ヶ所 | G72: 62 | K72: 0 | M72: 0 | N72: 0 | P72: 0 | V72: 0 | Y72: 0 | AB72: 0 | AE72: 0
C73: MB扉（両面・枠共） | E73: 750*1890 | G73: 34 | K73: 0 | M73: 0 | N73: 0 | P73: 0 | V73: 0 | Y73: 0 | AB73: 0 | AE73: 0
C74: 〃 | E74: 900*1890 | G74: 3 | K74: 0 | M74: 0 | N74: 0 | P74: 0 | V74: 0 | Y74: 0 | AB74: 0 | AE74: 0
C75: 〃 | E75: 1200*1890 観音開き | G75: 10 | K75: 0 | M75: 0 | N75: 0 | P75: 0 | V75: 0 | Y75: 0 | AB75: 0 | AE75: 0
C76: 〃 | E76: 1480*1890 観音開き | G76: 17 | K76: 0 | M76: 0 | N76: 0 | P76: 0 | V76: 0 | Y76: 0 | AB76: 0 | AE76: 0
C77: トランク扉（両面・枠共） | E77: 780*1880 | G77: 20 | K77: 0 | M77: 0 | N77: 0 | P77: 0 | V77: 0 | Y77: 0 | AB77: 0 | AE77: 0
C78: 〃 | E78: 1550*1920 観音開き | G78: 60 | K78: 0 | M78: 0 | N78: 0 | P78: 0 | V78: 0 | Y78: 0 | AB78: 0 | AE78: 0
C79: 〃 | E79: 1500*1920 観音開き | G79: 2 | K79: 0 | M79: 0 | N79: 0 | P79: 0 | V79: 0 | Y79: 0 | AB79: 0 | AE79: 0
C80: 門扉（両面） | E80: 1050*1100 | G80: 62 | K80: 0 | M80: 0 | N80: 0 | P80: 0 | V80: 0 | Y80: 0 | AB80: 0 | AE80: 0
C81: ゲート（門扉上） | G81: 62 | K81: 0 | M81: 0 | N81: 0 | P81: 0 | V81: 0 | Y81: 0 | AB81: 0 | AE81: 0
C82: ポーチ内格子（両面） | E82: 1200*1800 | G82: 48 | K82: 0 | M82: 0 | N82: 0 | P82: 0 | V82: 0 | Y82: 0 | AB82: 0 | AE82: 0
C83: 〃 | E83: 800*1800 | G83: 12 | K83: 0 | M83: 0 | N83: 0 | P83: 0 | V83: 0 | Y83: 0 | AB83: 0 | AE83: 0
C84: EPS扉（両面・枠共） | E84: 700*1900 | G84: 16 | K84: 0 | M84: 0 | N84: 0 | P84: 0 | V84: 0 | Y84: 0 | AB84: 0 | AE84: 0
C85: 放水口扉 | E85: 500*800 | G85: 10 | K85: 0 | M85: 0 | N85: 0 | P85: 0 | V85: 0 | Y85: 0 | AB85: 0 | AE85: 0
C86: 消火栓扉 | E86: 900*1400 | G86: 5 | K86: 0 | M86: 0 | N86: 0 | P86: 0 | V86: 0 | Y86: 0 | AB86: 0 | AE86: 0
C87: 集会室 MB扉 | E87: 400*300*200 150*800*100 | G87: 1 | K87: 0 | M87: 0 | N87: 0 | P87: 0 | V87: 0 | Y87: 0 | AB87: 0 | AE87: 0
C88: テラスベンチ | E88: 1500*400*400 | G88: 4 | K88: 0 | M88: 0 | N88: 0 | P88: 0 | V88: 0 | Y88: 0 | AB88: 0 | AE88: 0
C89: 4階 廊下 ポール | E89: 170Φ H2690 | G89: 4 | K89: 0 | M89: 0 | N89: 0 | P89: 0 | V89: 0 | Y89: 0 | AB89: 0 | AE89: 0
C90: 13階 階段A扉（両面・枠共） | E90: 1270*2100 | G90: 1 | K90: 0 | M90: 0 | N90: 0 | P90: 0 | V90: 0 | Y90: 0 | AB90: 0 | AE90: 0
C91: 屋上 EV機械室扉（両面・枠共） | E91: 950*2200 | G91: 1 | K91: 0 | M91: 0 | N91: 0 | P91: 0 | V91: 0 | Y91: 0 | AB91: 0 | AE91: 0
C92: 屋上 機械室扉（両面・枠共） | E92: 900*1800 | G92: 1 | K92: 0 | M92: 0 | N92: 0 | P92: 0 | V92: 0 | Y92: 0 | AB92: 0 | AE92: 0
C93: 屋上 MB | E93: 420*400*200 | G93: 1 | K93: 0 | M93: 0 | N93: 0 | P93: 0 | V93: 0 | Y93: 0 | AB93: 0 | AE93: 0
C94: エントランス メールボックス室 扉 | E94: 950*2150 | G94: 1 | K94: 0 | M94: 0 | N94: 0 | P94: 0 | V94: 0 | Y94: 0 | AB94: 0 | AE94: 0
C95: 1階駐輪場 入口扉（ガラス入り） | E95: 980*2150 | G95: 1 | K95: 0 | M95: 0 | N95: 0 | P95: 0 | V95: 0 | Y95: 0 | AB95: 0 | AE95: 0
C96: 1階駐輪場 防火扉 | E96: 2300*2150 | G96: 1 | K96: 0 | M96: 0 | N96: 0 | P96: 0 | V96: 0 | Y96: 0 | AB96: 0 | AE96: 0
C97: 1階駐輪場 EPS扉 | E97: 680*1800 | G97: 1 | K97: 0 | M97: 0 | N97: 0 | P97: 0 | V97: 0 | Y97: 0 | AB97: 0 | AE97: 0
C98: 1階駐輪場 MDF扉 | E98: 960*2150 | G98: 1 | K98: 0 | M98: 0 | N98: 0 | P98: 0 | V98: 0 | Y98: 0 | AB98: 0 | AE98: 0
C99: 1階管理人室 扉（ガラス入り） | E99: 2650*2600 | G99: 1 | K99: 0 | M99: 0 | N99: 0 | P99: 0 | V99: 0 | Y99: 0 | AB99: 0 | AE99: 0
C100: 1階A階段 ポンプ室 扉 | E100: 980*2150 | G100: 1 | K100: 0 | M100: 0 | N100: 0 | P100: 0 | V100: 0 | Y100: 0 | AB100: 0 | AE100: 0
C101: 1階EV 枠+防火扉 | E101: 1850*2150 | G101: 2 | K101: 0 | M101: 0 | N101: 0 | P101: 0 | V101: 0 | Y101: 0 | AB101: 0 | AE101: 0
C102: シャッター | K102: 0 | M102: 0 | N102: 0 | P102: 0
K103: =IFERROR(SUM(R103+U103+X103), "") -> 0 | L103: =IFERROR(SUM(M103/K103), "") ->  | M103: =IFERROR(SUM(T103+W103+Z103), "") -> 0 | N103: =IFERROR(SUM(AA103+AD103), "") -> 0 | O103: =IFERROR(SUM(P103/N103), "") ->  | P103: 0 | V103: =IFERROR(SUM(S103), "") -> 0 | Y103: =IFERROR(SUM(S103), "") -> 0 | AB103: =IFERROR(SUM(S103), "") -> 0 | AE103: =IFERROR(SUM(S103), "") -> 0
C104: 避雷針 | E104: アルミニウムペイント | G104: =IFERROR(SUM(K104+N104), "") -> 3 | H104: =IFERROR(SUM(I104/G104), "") -> 7000 | I104: =IFERROR(SUM(M104+P104), "") -> 21000 | K104: 2 | L104: 7000 | M104: 14000 | N104: 1 | O104: 7000 | P104: 7000 | R104: 2 | S104: 7000 | T104: =IFERROR(SUM(R104*S104), "") -> 14000 | AA104: 1 | AB104: 7000 | AC104: =IFERROR(SUM(AA104*AB104), "") -> 7000 | AE104: 7000
C105: ソーラーパネル架台タッチアップ塗装 | G105: 1 | H105: 100000 | I105: 100000 | K105: 1 | L105: 100000 | M105: 100000 | N105: 0 | P105: 0 | R105: 1 | S105: 100000 | T105: 100000 | AB105: 100000 | AC105: 0 | AE105: 100000
C106: 金属屋根 | E106: スーパーシリコン塗装 | G106: 1132 | H106: 1248.321555 | I106: 1413100 | K106: 844 | L106: 1230.687204 | M106: 1038700 | N106: 288 | O106: 1300 | P106: 374400 | R106: 259 | S106: 1300 | T106: 336700 | X106: 585 | Y106: 1200 | Z106: =IFERROR(SUM(X106*Y106), "") -> 702000 | AA106: 288 | AB106: 1300 | AC106: 374400 | AE106: 1300
C107: 渡り廊下パンチングメタル | G107: 230 | H107: 1100 | I107: 253000 | K107: 230 | L107: 1100 | M107: 253000 | N107: 0 | P107: 0 | R107: 230 | S107: 1100 | T107: 253000 | AB107: 1100 | AC107: 0 | AE107: 1100
C108: 渡り廊下ダウンライト | G108: 16 | H108: 600 | I108: 9600 | K108: 16 | L108: 600 | M108: 9600 | N108: 0 | P108: 0 | R108: 16 | S108: 600 | T108: 9600 | AB108: 600 | AC108: 0 | AE108: 600
C109: 室外機置場パンチングメタル | G109: 107.6 | H109: 1100 | I109: 118360 | K109: 107.6 | L109: 1100 | M109: 118360 | N109: 0 | P109: 0 | R109: 107.6 | S109: 1100 | T109: 118360 | AB109: 1100 | AC109: 0 | AE109: 1100
C110: スロープ庇 | E110: 西棟 | G110: 1 | H110: 50000 | I110: 50000 | K110: 0 | M110: 0 | N110: 1 | O110: 50000 | P110: 50000 | AA110: 1 | AB110: 50000 | AC110: 50000
C111: バルコニー隔て板 | G111: 61 | H111: 5300 | I111: 323300 | K111: 46 | L111: 5300 | M111: 243800 | N111: 15 | O111: 5300 | P111: 79500 | R111: 46 | S111: 5300 | T111: =IFERROR(SUM(R111*S111), "") -> 243800 | AA111: 15 | AB111: =IFERROR(SUM(S111), "") -> 5300 | AC111: 79500 | AE111: =IFERROR(SUM(S111), "") -> 5300
C112: 1階店舗庇 スパンドレル | E112: 洗い工事に計上 | G112: 0 | I112: 0 | K112: 0 | M112: 0 | N112: 0 | P112: 0
C113: 店舗上部 庇パネル・ガラリ格子 | E113: 洗い工事に計上 | G113: 0 | I113: 0 | K113: 0 | M113: 0 | N113: 0 | P113: 0
C114: 庇全面（オレンジ部） | E114: シリコントップ | G114: 268 | H114: 1200 | I114: 321600 | K114: 268 | L114: 1200 | M114: 321600 | N114: 0 | P114: 0 | U114: 184 | V114: 1200 | W114: =IFERROR(SUM(U114*V114), "") -> 220800 | X114: 84 | Y114: 1200 | Z114: =IFERROR(SUM(X114*Y114), "") -> 100800
C115: 「ウェルブ」看板 | E115: 洗い工事に計上 | G115: 0 | I115: 0 | K115: 0 | M115: 0 | N115: 0 | P115: 0
C116: ピロティ部分 柱及び梁の鋼製部分 | E116: 洗い工事に計上 | G116: 0 | I116: 0 | K116: 0 | M116: 0 | N116: 0 | P116: 0
C117: 樋 | G117: 1236 | H117: 550 | I117: 679800 | K117: 852 | L117: 550 | M117: 468600 | N117: 384 | O117: 550 | P117: 211200 | R117: 690 | S117: 550 | T117: =IFERROR(SUM(R117*S117), "") -> 379500 | U117: 96 | V117: =IFERROR(SUM(S117), "") -> 550 | W117: =IFERROR(SUM(U117*V117), "") -> 52800 | X117: 66 | Y117: =IFERROR(SUM(S117), "") -> 550 | Z117: =IFERROR(SUM(X117*Y117), "") -> 36300 | AA117: 240 | AB117: =IFERROR(SUM(S117), "") -> 550 | AC117: =IFERROR(SUM(AA117*AB117), "") -> 132000 | AD117: 144 | AE117: =IFERROR(SUM(S117), "") -> 550 | AF117: =IFERROR(SUM(AD117*AE117), "") -> 79200
C118: 照明器具 | G118: 1 | H118: 10000 | I118: 10000 | K118: 0 | M118: 0 | N118: 1 | O118: 10000 | P118: 10000 | AD118: 1 | AE118: 10000 | AF118: =IFERROR(SUM(AD118*AE118), "") -> 10000
C119: エントランス庇支柱 | G119: 1 | H119: 30000 | I119: 30000 | K119: 0 | M119: 0 | N119: 1 | O119: 30000 | P119: 30000 | AA119: 1 | AB119: 30000 | AC119: =IFERROR(SUM(AA119*AB119), "") -> 30000
C120: 雑塗装 | E120: 各種支持金物等 | G120: 5 | H120: 112000 | I120: 560000 | K120: 3 | L120: 120000 | M120: 360000 | N120: 2 | O120: 100000 | P120: 200000 | R120: 1 | S120: 200000 | T120: =IFERROR(SUM(R120*S120), "") -> 200000 | U120: 1 | V120: 80000 | W120: =IFERROR(SUM(U120*V120), "") -> 80000 | X120: 1 | Y120: 80000 | Z120: =IFERROR(SUM(X120*Y120), "") -> 80000 | AA120: 1 | AB120: 100000 | AC120: =IFERROR(SUM(AA120*AB120), "") -> 100000 | AD120: 1 | AE120: 100000 | AF120: =IFERROR(SUM(AD120*AE120), "") -> 100000
C121: 養生による塗膜剥がれ | E121: タッチアップ | G121: 5 | H121: 90000 | I121: 450000 | K121: 3 | L121: 100000 | M121: 300000 | N121: 2 | O121: 75000 | P121: 150000 | R121: 1 | S121: 200000 | T121: =IFERROR(SUM(R121*S121), "") -> 200000 | U121: 1 | V121: 50000 | W121: =IFERROR(SUM(U121*V121), "") -> 50000 | X121: 1 | Y121: 50000 | Z121: =IFERROR(SUM(X121*Y121), "") -> 50000 | AA121: 1 | AB121: 100000 | AC121: =IFERROR(SUM(AA121*AB121), "") -> 100000 | AD121: 1 | AE121: 50000 | AF121: =IFERROR(SUM(AD121*AE121), "") -> 50000
I122: 4339760 | M122: 3227660 | P122: 1112100 | S122: 鉄部塗装工事計 | T122: =IFERROR(SUM(T98:T121), "") -> 1854960 | V122: 計 | W122: =IFERROR(SUM(W98:W121), "") -> 403600 | Y122: 計 | Z122: =IFERROR(SUM(Z71:Z121), "") -> 969100 | AB122: 計 | AC122: =IFERROR(SUM(AC71:AC121), "") -> 872900 | AE122: 計 | AF122: =IFERROR(SUM(AF71:AF121), "") -> 239200
B123: 6 防水工事 | C123: 【塔屋】 | E123: ウレタン塗膜防水 通気緩衝工法 | G123: =IFERROR(SUM(K123+N123), "") -> 0 | H123: =IFERROR(SUM(I123/G123), "") ->  | I123: 0 | M123: 0 | N123: =IFERROR(SUM(AA123+AD123), "") -> 0 | O123: =IFERROR(SUM(P123/N123), "") ->  | P123: 0 | V123: =IFERROR(SUM(S123), "") -> 0 | Y123: =IFERROR(SUM(S123), "") -> 0 | AB123: =IFERROR(SUM(S123), "") -> 0 | AE123: =IFERROR(SUM(S123), "") -> 0
C124: 既設防水面ケレン・清掃・高圧洗浄 | G124: 15.2 | H124: 50 | I124: 760 | K124: =IFERROR(SUM(R124+U124+X124), "") -> 15.2 | L124: =IFERROR(SUM(M124/K124), "") -> 50 | M124: 760 | N124: 0 | P124: 0 | R124: 15.2 | S124: 50 | T124: =IFERROR(SUM(R124*S124), "") -> 760 | Y124: 50 | AB124: 50 | AE124: 50
C125: 既設立上り防水層撤去・仮防水 | E125: 押え金物含む | G125: 15.2 | H125: 2500 | I125: 38000 | K125: 15.2 | L125: 2500 | M125: 38000 | N125: 0 | P125: 0 | R125: 15.2 | S125: 2500 | T125: 38000 | Y125: 2500 | AB125: 2500 | AE125: 2500
C126: 下地処理 | E126: 伸縮目地含む | G126: 15.2 | H126: 500 | I126: 7600 | K126: 15.2 | L126: 500 | M126: 7600 | N126: 0 | P126: 0 | R126: 15.2 | S126: 500 | T126: 7600 | Y126: 500 | AB126: 500 | AE126: 500
C127: 平場部防水 | E127: 田島ルーフィング OSTW-3S | G127: 10.8 | H127: 4300 | I127: 46440 | K127: 10.8 | L127: 4300 | M127: 46440 | N127: 0 | P127: 0 | R127: 10.8 | S127: 4300 | T127: 46440 | Y127: 4300 | AB127: 4300 | AE127: 4300
C128: 立上り | E128: H300 | G128: 4.4 | H128: 4300 | I128: 18920 | K128: 4.4 | L128: 4300 | M128: 18920 | N128: 0 | P128: 0 | R128: 4.4 | S128: 4300 | T128: 18920 | Y128: 4300 | AB128: 4300 | AE128: 4300
C129: 立上り 押え金物 | E129: アルミ製 | G129: 14.8 | H129: 1500 | I129: 22200 | K129: 14.8 | L129: 1500 | M129: 22200 | N129: 0 | P129: 0 | R129: 14.8 | S129: 1500 | T129: 22200 | Y129: 1500 | AB129: 1500 | AE129: 1500
C130: 同上廻り シーリング | G130: 14.8 | H130: 300 | I130: 4440 | K130: 14.8 | L130: 300 | M130: 4440 | N130: 0 | P130: 0 | R130: 14.8 | S130: 300 | T130: 4440 | Y130: 300 | AB130: 300 | AE130: 300
C131: 改修用ドレン | G131: 1 | H131: 12000 | I131: 12000 | K131: 1 | L131: 12000 | M131: 12000 | N131: 0 | P131: 0 | R131: 1 | S131: 12000 | T131: 12000 | Y131: 12000 | AB131: 12000 | AE131: 12000
C132: 脱気筒 | G132: 1 | H132: 8000 | I132: 8000 | K132: 1 | L132: 8000 | M132: 8000 | N132: 0 | P132: 0 | R132: 1 | S132: 8000 | T132: 8000 | Y132: 8000 | AB132: 8000 | AE132: 8000
G133: 0 | I133: 158360 | K133: 0 | M133: 158360 | N133: 0 | P133: 0 | S133: 小計 | T133: =IFERROR(SUM(T124:T132), "") -> 158360 | V133: =IFERROR(SUM(S133), "") -> 0 | Y133: 0 | AB133: 0 | AE133: 0
C134: 【屋上】 | E134: ウレタン塗膜防水 通気緩衝工法 | G134: 0 | I134: 0 | K134: 0 | M134: 0 | N134: 0 | P134: 0 | V134: 0 | Y134: 0 | AB134: 0 | AE134: 0
C135: 既設防水面ケレン・清掃・高圧洗浄 | G135: 898.7 | H135: 50 | I135: 44935 | K135: 671.5 | L135: 50 | M135: =IFERROR(SUM(T135+W135+Z135), "") -> 33575 | N135: 227.2 | O135: 50 | P135: =IFERROR(SUM(AC135+AF135), "") -> 11360 | R135: 460.5 | S135: 50 | T135: =IFERROR(SUM(R135*S135), "") -> 23025 | U135: 49.8 | V135: 50 | W135: =IFERROR(SUM(U135*V135), "") -> 2490 | X135: 161.2 | Y135: 50 | Z135: =IFERROR(SUM(X135*Y135), "") -> 8060 | AA135: 215.1 | AB135: 50 | AC135: =IFERROR(SUM(AA135*AB135), "") -> 10755 | AD135: 12.1 | AE135: 50 | AF135: =IFERROR(SUM(AD135*AE135), "") -> 605
C136: 既設立上り防水層撤去・仮防水 | E136: 押え金物含む | G136: 731.9 | H136: 2500 | I136: =IFERROR(SUM(M136+P136), "") -> 1829750 | K136: 671.5 | L136: 2500 | M136: 1678750 | N136: 60.4 | O136: 2500 | P136: 151000 | R136: 460.5 | S136: 2500 | T136: 1151250 | U136: 49.8 | V136: 2500 | W136: 124500 | X136: 161.2 | Y136: 2500 | Z136: 403000 | AA136: 48.3 | AB136: 2500 | AC136: 120750 | AD136: 12.1 | AE136: 2500 | AF136: 30250
C137: 下地処理 | E137: 伸縮目地含む | G137: 898.7 | H137: 500 | I137: 449350 | K137: 671.5 | L137: 500 | M137: 335750 | N137: 227.2 | O137: 500 | P137: 113600 | R137: 460.5 | S137: 500 | T137: 230250 | U137: 49.8 | V137: 500 | W137: 24900 | X137: 161.2 | Y137: 500 | Z137: 80600 | AA137: 215.1 | AB137: 500 | AC137: 107550 | AD137: 12.1 | AE137: 500 | AF137: 6050
C138: 平場部防水 | E138: 田島ルーフィング OSTW-3S | G138: 734.4 | H138: 4300 | I138: 3157920 | K138: 559 | L138: 4300 | M138: 2403700 | N138: 175.4 | O138: 4300 | P138: 754220 | R138: 381 | S138: 4300 | T138: 1638300 | U138: 42 | V138: 4300 | W138: 180600 | X138: 136 | Y138: 4300 | Z138: 584800 | AA138: 166.8 | AB138: 4300 | AC138: 717240 | AD138: 8.6 | AE138: 4300 | AF138: 36980
C139: 立上り | E139: H300 | G139: 164.3 | H139: 4300 | I139: 706490 | K139: 112.5 | L139: 4300 | M139: 483750 | N139: 51.8 | O139: 4300 | P139: 222740 | R139: 79.5 | S139: 4300 | T139: 341850 | U139: 7.8 | V139: 4300 | W139: 33540 | X139: 25.2 | Y139: 4300 | Z139: 108360 | AA139: 48.3 | AB139: 4300 | AC139: 207690 | AD139: 3.5 | AE139: 4300 | AF139: 15050
C140: 立上り 押え金物 | E140: アルミ製 | G140: 549.7 | H140: 1500 | I140: 824550 | K140: 375 | L140: 1500 | M140: 562500 | N140: 174.7 | O140: 1500 | P140: 262050 | R140: 265 | S140: 1500 | T140: 397500 | U140: 26 | V140: 1500 | W140: 39000 | X140: 84 | Y140: 1500 | Z140: 126000 | AA140: 162.9 | AB140: 1500 | AC140: 244350 | AD140: 11.8 | AE140: 1500 | AF140: 17700
C141: 同上廻り シーリング | G141: 549.7 | H141: 300 | I141: 164910 | K141: 375 | L141: 300 | M141: 112500 | N141: 174.7 | O141: 300 | P141: 52410 | R141: 265 | S141: 300 | T141: 79500 | U141: 26 | V141: 300 | W141: 7800 | X141: 84 | Y141: 300 | Z141: 25200 | AA141: 162.9 | AB141: 300 | AC141: 48870 | AD141: 11.8 | AE141: 300 | AF141: 3540
C142: 改修用ドレン | G142: 23 | H142: 12000 | I142: 276000 | K142: 15 | L142: 12000 | M142: 180000 | N142: 8 | O142: 12000 | P142: 96000 | R142: 11 | S142: 12000 | T142: 132000 | U142: 1 | V142: 12000 | W142: 12000 | X142: 3 | Y142: 12000 | Z142: 36000 | AA142: 7 | AB142: 12000 | AC142: 84000 | AD142: 1 | AE142: 12000 | AF142: 12000
C143: 脱気筒 | G143: 12 | H143: 8000 | I143: 96000 | K143: 8 | L143: 8000 | M143: 64000 | N143: 4 | O143: 8000 | P143: 32000 | R143: 4 | S143: 8000 | T143: 32000 | U143: 1 | V143: 8000 | W143: 8000 | X143: 3 | Y143: 8000 | Z143: 24000 | AA143: 3 | AB143: 8000 | AC143: 24000 | AD143: 1 | AE143: 8000 | AF143: 8000
G144: 0 | I144: 7549905 | K144: 0 | M144: 5854525 | N144: 0 | P144: 1695380 | S144: 小計 | T144: =IFERROR(SUM(T135:T143), "") -> 4025675 | V144: 小計 | W144: =IFERROR(SUM(W135:W143), "") -> 432830 | Y144: 小計 | Z144: =IFERROR(SUM(Z135:Z143), "") -> 1396020 | AB144: 小計 | AC144: =IFERROR(SUM(AC135:AC143), "") -> 1565205 | AE144: 小計 | AF144: =IFERROR(SUM(AF135:AF143), "") -> 130175
C145: 【ルーフ・バルコニー・テラス】 | E145: ウレタン塗膜防水 通気緩衝工法 | G145: 0 | I145: 0 | K145: 0 | M145: 0 | N145: 0 | P145: 0 | V145: =IFERROR(SUM(S145), "") -> 0 | Y145: =IFERROR(SUM(S145), "") -> 0 | AB145: =IFERROR(SUM(S145), "") -> 0 | AE145: =IFERROR(SUM(S145), "") -> 0
C146: 既設防水面ケレン・清掃・高圧洗浄 | G146: 495.4 | H146: 50 | I146: 24770 | K146: 405.4 | L146: 50 | M146: 20270 | N146: 90 | O146: 50 | P146: 4500 | R146: 240.3 | S146: 50 | T146: =IFERROR(SUM(R146*S146), "") -> 12015 | U146: 114.9 | V146: 50 | W146: =IFERROR(SUM(U146*V146), "") -> 5745 | X146: 50.2 | Y146: 50 | Z146: =IFERROR(SUM(X146*Y146), "") -> 2510 | AB146: 50 | AC146: =IFERROR(SUM(AA146*AB146), "") -> 0 | AD146: 90 | AE146: 50 | AF146: =IFERROR(SUM(AD146*AE146), "") -> 4500
C147: 既設立上り防水層撤去・仮防水 | E147: 押え金物含む | G147: 495.4 | H147: 2500 | I147: 1238500 | K147: 405.4 | L147: 2500 | M147: 1013500 | N147: 90 | O147: 2500 | P147: 225000 | R147: 240.3 | S147: 2500 | T147: 600750 | U147: 114.9 | V147: 2500 | W147: 287250 | X147: 50.2 | Y147: 2500 | Z147: 125500 | AB147: 2500 | AC147: 0 | AD147: 90 | AE147: 2500 | AF147: 225000
C148: 下地処理 | E148: 伸縮目地含む | G148: 495.4 | H148: 500 | I148: 247700 | K148: 405.4 | L148: 500 | M148: 202700 | N148: 90 | O148: 500 | P148: 45000 | R148: 240.3 | S148: 500 | T148: 120150 | U148: 114.9 | V148: 500 | W148: 57450 | X148: 50.2 | Y148: 500 | Z148: 25100 | AB148: 500 | AC148: 0 | AD148: 90 | AE148: 500 | AF148: 45000
C149: 平場部防水 | E149: 田島ルーフィング OSTW-3S | G149: 392.2 | H149: 4300 | I149: 1686460 | K149: 318.7 | L149: 4300 | M149: 1370410 | N149: 73.5 | O149: 4300 | P149: 316050 | R149: 186 | S149: 4300 | T149: 799800 | U149: 97.5 | V149: 4300 | W149: 419250 | X149: 35.2 | Y149: 4300 | Z149: 151360 | AB149: 4300 | AC149: 0 | AD149: 73.5 | AE149: 4300 | AF149: 316050
C150: 立上り | E150: H300 | G150: 103.2 | H150: 4300 | I150: 443760 | K150: 86.7 | L150: 4300 | M150: 372810 | N150: 16.5 | O150: 4300 | P150: 70950 | R150: 54.3 | S150: 4300 | T150: 233490 | U150: 17.4 | V150: 4300 | W150: 74820 | X150: 15 | Y150: 4300 | Z150: 64500 | AB150: 4300 | AC150: 0 | AD150: 16.5 | AE150: 4300 | AF150: 70950
C151: 立上り 押え金物 | E151: アルミ製 | G151: 344 | H151: 1500 | I151: 516000 | K151: 289 | L151: 1500 | M151: 433500 | N151: 55 | O151: 1500 | P151: 82500 | R151: 181 | S151: 1500 | T151: 271500 | U151: 58 | V151: 1500 | W151: 87000 | X151: 50 | Y151: 1500 | Z151: 75000 | AB151: 1500 | AC151: 0 | AD151: 55 | AE151: 1500 | AF151: 82500
C152: 同上廻り シーリング | G152: 344 | H152: 300 | I152: 103200 | K152: 289 | L152: 300 | M152: 86700 | N152: 55 | O152: 300 | P152: 16500 | R152: 181 | S152: 300 | T152: 54300 | U152: 58 | V152: 300 | W152: 17400 | X152: 50 | Y152: 300 | Z152: 15000 | AB152: 300 | AC152: 0 | AD152: 55 | AE152: 300 | AF152: 16500
C153: 改修用ドレン | G153: 19 | H153: 12000 | I153: 228000 | K153: 16 | L153: 12000 | M153: 192000 | N153: 3 | O153: 12000 | P153: 36000 | R153: 11 | S153: 12000 | T153: 132000 | U153: 2 | V153: 12000 | W153: 24000 | X153: 3 | Y153: 12000 | Z153: 36000 | AB153: 12000 | AC153: 0 | AD153: 3 | AE153: 12000 | AF153: 36000
C154: 脱気筒 | G154: 14 | H154: 8000 | I154: 112000 | K154: 12 | L154: 8000 | M154: 96000 | N154: 2 | O154: 8000 | P154: 16000 | R154: 8 | S154: 8000 | T154: 64000 | U154: 2 | V154: 8000 | W154: 16000 | X154: 2 | Y154: 8000 | Z154: 16000 | AB154: 8000 | AC154: 0 | AD154: 2 | AE154: 8000 | AF154: 16000
C155: フェンス基礎 | E155: 西棟 | G155: =IFERROR(SUM(K155+N155), "") -> 1 | H155: =IFERROR(SUM(I155/G155), "") -> 30000 | I155: 30000 | K155: 0 | M155: 0 | N155: =IFERROR(SUM(AA155+AD155), "") -> 1 | O155: =IFERROR(SUM(P155/N155), "") -> 30000 | P155: 30000 | AD155: 1 | AE155: 30000 | AF155: 30000
G156: 0 | I156: 4630390 | K156: 0 | M156: 3787890 | N156: 0 | P156: 842500 | S156: 小計 | T156: =IFERROR(SUM(T146:T154), "") -> 2288005 | V156: 小計 | W156: =IFERROR(SUM(W146:W154), "") -> 988915 | Y156: 小計 | Z156: =IFERROR(SUM(Z146:Z154), "") -> 510970 | AB156: 小計 | AC156: =IFERROR(SUM(AC146:AC154), "") -> 0 | AE156: 小計 | AF156: =IFERROR(SUM(AF146:AF155), "") -> 842500
C157: 【パラペット天端・鳩小屋】 | E157: ウレタン塗膜防水 | G157: 0 | I157: 0 | K157: 0 | M157: 0 | N157: 0 | P157: 0 | V157: =IFERROR(SUM(S157), "") -> 0 | Y157: =IFERROR(SUM(S157), "") -> 0 | AB157: =IFERROR(SUM(S157), "") -> 0 | AE157: =IFERROR(SUM(S157), "") -> 0
C158: 既設防水面ケレン・清掃・高圧洗浄 | G158: 455.5 | H158: 50 | I158: 22775 | K158: 321.3 | L158: 50 | M158: 16065 | N158: 134.2 | O158: 50 | P158: 6710 | R158: 203 | S158: 50 | T158: =IFERROR(SUM(R158*S158), "") -> 10150 | U158: 78.3 | V158: =IFERROR(SUM(S158), "") -> 50 | W158: =IFERROR(SUM(U158*V158), "") -> 3915 | X158: 40 | Y158: =IFERROR(SUM(S158), "") -> 50 | Z158: =IFERROR(SUM(X158*Y158), "") -> 2000 | AA158: 95.2 | AB158: =IFERROR(SUM(S158), "") -> 50 | AC158: =IFERROR(SUM(AA158*AB158), "") -> 4760 | AD158: 39 | AE158: =IFERROR(SUM(S158), "") -> 50 | AF158: =IFERROR(SUM(AD158*AE158), "") -> 1950
C159: 下地処理 | G159: 455.5 | H159: 250 | I159: 113875 | K159: 321.3 | L159: 250 | M159: 80325 | N159: 134.2 | O159: 250 | P159: 33550 | R159: 203 | S159: 250 | T159: =IFERROR(SUM(R159*S159), "") -> 50750 | U159: 78.3 | V159: =IFERROR(SUM(S159), "") -> 250 | W159: =IFERROR(SUM(U159*V159), "") -> 19575 | X159: 40 | Y159: =IFERROR(SUM(S159), "") -> 250 | Z159: =IFERROR(SUM(X159*Y159), "") -> 10000 | AA159: 95.2 | AB159: =IFERROR(SUM(S159), "") -> 250 | AC159: =IFERROR(SUM(AA159*AB159), "") -> 23800 | AD159: 39 | AE159: =IFERROR(SUM(S159), "") -> 250 | AF159: =IFERROR(SUM(AD159*AE159), "") -> 9750
C160: パラペット天端 | E160: 田島ルーフィング OSTL-6VA | G160: 455.5 | H160: 2400 | I160: 1093200 | K160: 321.3 | L160: 2400 | M160: 771120 | N160: 134.2 | O160: 2400 | P160: 322080 | R160: 203 | S160: 2400 | T160: =IFERROR(SUM(R160*S160), "") -> 487200 | U160: 78.3 | V160: =IFERROR(SUM(S160), "") -> 2400 | W160: =IFERROR(SUM(U160*V160), "") -> 187920 | X160: 40 | Y160: =IFERROR(SUM(S160), "") -> 2400 | Z160: =IFERROR(SUM(X160*Y160), "") -> 96000 | AA160: 95.2 | AB160: =IFERROR(SUM(S160), "") -> 2400 | AC160: =IFERROR(SUM(AA160*AB160), "") -> 228480 | AD160: 39 | AE160: =IFERROR(SUM(S160), "") -> 2400 | AF160: =IFERROR(SUM(AD160*AE160), "") -> 93600
C161: ドレン | G161: 8 | H161: 500 | I161: 4000 | K161: 0 | M161: 0 | N161: 8 | O161: 500 | P161: 4000 | AA161: 8 | AB161: 500 | AC161: =IFERROR(SUM(AA161*AB161), "") -> 4000 | AF161: =IFERROR(SUM(AD161*AE161), "") -> 0
G162: 0 | I162: 1233850 | K162: 0 | M162: 867510 | N162: 0 | P162: 366340 | S162: 小計 | T162: =IFERROR(SUM(T158:T160), "") -> 548100 | V162: 小計 | W162: =IFERROR(SUM(W158:W160), "") -> 211410 | Y162: 小計 | Z162: =IFERROR(SUM(Z158:Z161), "") -> 108000 | AB162: 小計 | AC162: =IFERROR(SUM(AC158:AC161), "") -> 261040 | AE162: 小計 | AF162: =IFERROR(SUM(AF158:AF161), "") -> 105300
G163: 0 | I163: 0 | K163: 0 | M163: 0 | N163: 0 | P163: 0
C164: 【大庇】 | G164: 0 | I164: 0 | K164: 0 | M164: 0 | N164: 0 | P164: 0 | V164: =IFERROR(SUM(S164), "") -> 0 | Y164: =IFERROR(SUM(S164), "") -> 0 | AB164: =IFERROR(SUM(S164), "") -> 0 | AE164: =IFERROR(SUM(S164), "") -> 0
C165: 既設防水面ケレン・清掃・高圧洗浄 | G165: 298.4 | H165: 50 | I165: 14920 | K165: 201 | L165: 50 | M165: 10050 | N165: 97.4 | O165: 50 | P165: 4870 | R165: 178 | S165: 50 | T165: =IFERROR(SUM(R165*S165), "") -> 8900 | X165: 23 | Y165: =IFERROR(SUM(S165), "") -> 50 | Z165: =IFERROR(SUM(X165*Y165), "") -> 1150 | AA165: 97.4 | AB165: =IFERROR(SUM(S165), "") -> 50 | AC165: =IFERROR(SUM(AA165*AB165), "") -> 4870 | AE165: =IFERROR(SUM(S165), "") -> 50 | AF165: =IFERROR(SUM(AD165*AE165), "") -> 0
C166: 下地処理 | G166: 298.4 | H166: 250 | I166: 74600 | K166: 201 | L166: 250 | M166: 50250 | N166: 97.4 | O166: 250 | P166: 24350 | R166: 178 | S166: 250 | T166: =IFERROR(SUM(R166*S166), "") -> 44500 | X166: 23 | Y166: =IFERROR(SUM(S166), "") -> 250 | Z166: =IFERROR(SUM(X166*Y166), "") -> 5750 | AA166: 97.4 | AB166: =IFERROR(SUM(S166), "") -> 250 | AC166: =IFERROR(SUM(AA166*AB166), "") -> 24350 | AE166: =IFERROR(SUM(S166), "") -> 250 | AF166: =IFERROR(SUM(AD166*AE166), "") -> 0
C167: 平場・立上り | E167: 田島ルーフィング OSTL-6VA | G167: 298.4 | H167: 2400 | I167: 716160 | K167: 201 | L167: 2400 | M167: 482400 | N167: 97.4 | O167: 2400 | P167: 233760 | R167: 178 | S167: 2400 | T167: =IFERROR(SUM(R167*S167), "") -> 427200 | X167: 23 | Y167: =IFERROR(SUM(S167), "") -> 2400 | Z167: =IFERROR(SUM(X167*Y167), "") -> 55200 | AA167: 97.4 | AB167: =IFERROR(SUM(S167), "") -> 2400 | AC167: =IFERROR(SUM(AA167*AB167), "") -> 233760 | AE167: =IFERROR(SUM(S167), "") -> 2400 | AF167: =IFERROR(SUM(AD167*AE167), "") -> 0
C168: ドレン | G168: 28 | H168: 500 | I168: =IFERROR(SUM(M168+P168), "") -> 14000 | K168: 17 | L168: 500 | M168: 8500 | N168: 11 | O168: 500 | P168: 5500 | R168: 15 | S168: 500 | T168: =IFERROR(SUM(R168*S168), "") -> 7500 | X168: 2 | Y168: =IFERROR(SUM(S168), "") -> 500 | Z168: =IFERROR(SUM(X168*Y168), "") -> 1000 | AA168: 11 | AB168: =IFERROR(SUM(S168), "") -> 500 | AC168: =IFERROR(SUM(AA168*AB168), "") -> 5500 | AE168: =IFERROR(SUM(S168), "") -> 500 | AF168: =IFERROR(SUM(AD168*AE168), "") -> 0
G169: 0 | I169: 268480 | N169: 0 | P169: 268480 | S169: 小計 | T169: =IFERROR(SUM(T165:T168), "") -> 488100 | W169: =IFERROR(SUM(W165:W168), "") -> 0 | Y169: 小計 | Z169: =IFERROR(SUM(Z165:Z168), "") -> 63100 | AB169: 小計 | AC169: =IFERROR(SUM(AC165:AC168), "") -> 268480 | AE169: 小計 | AF169: =IFERROR(SUM(AF165:AF168), "") -> 0
C170: 【小庇】 | E170: ウレタン塗膜防水 | G170: 0 | I170: 0 | K170: =IFERROR(SUM(R170+U170+X170), "") -> 0 | L170: =IFERROR(SUM(M170/K170), "") ->  | M170: =IFERROR(SUM(T170+W170+Z170), "") -> 0 | N170: 0 | P170: 0 | V170: =IFERROR(SUM(S170), "") -> 0 | Y170: =IFERROR(SUM(S170), "") -> 0 | AB170: =IFERROR(SUM(S170), "") -> 0 | AE170: =IFERROR(SUM(S170), "") -> 0
C171: 既設防水面ケレン・清掃・高圧洗浄 | G171: 36 | H171: 50 | I171: 1800 | K171: 36 | L171: 50 | M171: 1800 | N171: 0 | P171: 0 | R171: 36 | S171: 50 | T171: =IFERROR(SUM(R171*S171), "") -> 1800 | Y171: 50 | AB171: 50 | AE171: 50
C172: 下地処理 | G172: 36 | H172: 250 | I172: 9000 | K172: 36 | L172: 250 | M172: 9000 | N172: 0 | P172: 0 | R172: 36 | S172: 250 | T172: =IFERROR(SUM(R172*S172), "") -> 9000 | Y172: 250 | AB172: 250 | AE172: 250
C173: 平場・立上り | E173: 田島ルーフィング OSTL-6VA | G173: 36 | H173: 2400 | I173: 86400 | K173: 36 | L173: 2400 | M173: 86400 | N173: 0 | P173: 0 | R173: 36 | S173: 2400 | T173: =IFERROR(SUM(R173*S173), "") -> 86400 | Y173: 2400 | AB173: 2400 | AE173: 2400
G174: 0 | I174: 97200 | K174: 0 | M174: 97200 | N174: 0 | P174: 0 | S174: 計 | T174: =IFERROR(SUM(T170:T173), "") -> 97200 | Y174: 0 | AB174: 0 | AE174: 0
C175: 【バルコニー】 | E175: ウレタン塗膜防水 | G175: 0 | I175: 0 | K175: 0 | M175: 0 | N175: 0 | P175: 0 | Y175: 0 | AB175: 0 | AE175: 0
C176: ケレン・清掃 | G176: 2375 | H176: 20.13894737 | I176: 47830 | K176: 1817.6 | L176: 20 | M176: 36352 | N176: 557.4 | O176: 20.59203445 | P176: 11478 | R176: 1817.6 | S176: 20 | T176: =IFERROR(SUM(R176*S176), "") -> 36352 | Y176: 20 | AA176: 546.4 | AB176: 20 | AC176: =IFERROR(SUM(AA176*AB176), "") -> 10928 | AD176: 11 | AE176: 50 | AF176: =IFERROR(SUM(AD176*AE176), "") -> 550
C177: 下地処理 | G177: 2375 | H177: 31.01894737 | I177: 73670 | K177: 1817.6 | L177: 30 | M177: 54528 | N177: 557.4 | O177: 34.34158593 | P177: 19142 | R177: 1817.6 | S177: 30 | T177: =IFERROR(SUM(R177*S177), "") -> 54528 | Y177: 30 | AA177: 546.4 | AB177: 30 | AC177: =IFERROR(SUM(AA177*AB177), "") -> 16392 | AD177: 11 | AE177: 250 | AF177: 2750
C178: 平場 | E178: 西棟避難バルコニー | G178: 8.4 | H178: 2400 | I178: 20160 | K178: 0 | M178: 0 | N178: 8.4 | O178: 2400 | P178: 20160 | AD178: 8.4 | AE178: 2400 | AF178: 20160
C179: 溝 | E179: 田島ルーフィングOSTL-6VA | G179: 767.4 | H179: 830 | I179: 636942 | K179: 568 | L179: 830 | M179: 471440 | N179: 199.4 | O179: 830 | P179: 165502 | R179: 568 | S179: 830 | T179: =IFERROR(SUM(R179*S179), "") -> 471440 | Y179: =IFERROR(SUM(S179), "") -> 830 | AA179: 190.9 | AB179: =IFERROR(SUM(S179), "") -> 830 | AC179: =IFERROR(SUM(AA179*AB179), "") -> 158447 | AD179: 8.5 | AE179: =IFERROR(SUM(S179), "") -> 830 | AF179: 7055
C180: 立上り | E180: 田島ルーフィングOSTL-6VA | G180: 1622.1 | H180: 830 | I180: 1346343 | K180: 1249.6 | L180: 830 | M180: 1037168 | N180: 372.5 | O180: 830 | P180: 309175 | R180: 1249.6 | S180: 830 | T180: =IFERROR(SUM(R180*S180), "") -> 1037168 | Y180: =IFERROR(SUM(S180), "") -> 830 | AA180: 355.5 | AB180: =IFERROR(SUM(S180), "") -> 830 | AC180: =IFERROR(SUM(AA180*AB180), "") -> 295065 | AD180: 17 | AE180: =IFERROR(SUM(S180), "") -> 830 | AF180: 14110
C181: ドレン | E181: タールエポ塗装 | G181: 135 | H181: 500 | I181: 67500 | K181: 98 | L181: 500 | M181: 49000 | N181: 37 | O181: 500 | P181: 18500 | R181: 98 | S181: 500 | T181: =IFERROR(SUM(R181*S181), "") -> 49000 | Y181: =IFERROR(SUM(S181), "") -> 500 | AA181: 35 | AB181: =IFERROR(SUM(S181), "") -> 500 | AC181: =IFERROR(SUM(AA181*AB181), "") -> 17500 | AD181: 2 | AE181: =IFERROR(SUM(S181), "") -> 500 | AF181: 1000
G182: 0 | I182: 2192445 | K182: 0 | M182: 1648488 | N182: 0 | P182: 543957 | S182: 小計 | T182: =IFERROR(SUM(T176:T181), "") -> 1648488 | V182: 小計 | W182: =IFERROR(SUM(W176:W181), "") -> 0 | Y182: 小計 | Z182: =IFERROR(SUM(Z176:Z181), "") -> 0 | AB182: 小計 | AC182: =IFERROR(SUM(AC176:AC181), "") -> 498332 | AE182: 小計 | AF182: =IFERROR(SUM(AF176:AF181), "") -> 45625
G183: 0 | I183: 0 | K183: 0 | M183: 0 | N183: 0 | P183: 0 | V183: =IFERROR(SUM(S183), "") -> 0 | Y183: =IFERROR(SUM(S183), "") -> 0 | AB183: =IFERROR(SUM(S183), "") -> 0 | AE183: =IFERROR(SUM(S183), "") -> 0
C184: 【植え込み】 | G184: 0 | I184: 0 | K184: 0 | M184: 0 | N184: 0 | P184: 0 | V184: =IFERROR(SUM(S184), "") -> 0 | Y184: =IFERROR(SUM(S184), "") -> 0 | AB184: =IFERROR(SUM(S184), "") -> 0 | AE184: =IFERROR(SUM(S184), "") -> 0
G185: 0 | I185: 0 | K185: 0 | M185: 0 | N185: 0 | P185: 0
C186: 【非常用侵入バルコニー】 | E186: ウレタン塗膜防水 通気緩衝工法 | G186: 0 | I186: 0 | K186: 0 | M186: 0 | N186: 0 | P186: 0
C187: 既設防水面ケレン・清掃・高圧洗浄 | G187: =IFERROR(SUM(K187+N187), "") -> 129.9 | H187: =IFERROR(SUM(I187/G187), "") -> 50 | I187: 6495 | K187: 129.9 | L187: 50 | M187: 6495 | N187: =IFERROR(SUM(AA187+AD187), "") -> 0 | O187: =IFERROR(SUM(P187/N187), "") ->  | P187: 0 | U187: 104.4 | V187: 50 | W187: =IFERROR(SUM(U187*V187), "") -> 5220 | X187: 25.5 | Y187: 50 | Z187: =IFERROR(SUM(X187*Y187), "") -> 1275
C188: 既設立上り防水層撤去・仮防水 | E188: 押え金物含む | G188: 129.9 | H188: 2500 | I188: 324750 | K188: 129.9 | L188: 2500 | M188: 324750 | N188: 0 | P188: 0 | U188: 104.4 | V188: 2500 | W188: 261000 | X188: 25.5 | Y188: 2500 | Z188: 63750
C189: 下地処理 | E189: 伸縮目地含む | G189: 129.9 | H189: 500 | I189: 64950 | K189: 129.9 | L189: 500 | M189: 64950 | N189: 0 | P189: 0 | U189: 104.4 | V189: 500 | W189: 52200 | X189: 25.5 | Y189: 500 | Z189: 12750
C190: 平場部防水 | E190: 田島ルーフィング OSTW-3S | G190: 97 | H190: 4300 | I190: 417100 | K190: 97 | L190: 4300 | M190: 417100 | N190: 0 | P190: 0 | U190: 77.4 | V190: 4300 | W190: 332820 | X190: 19.6 | Y190: 4300 | Z190: 84280
C191: 立上り | E191: H300 | G191: 32.9 | H191: 4300 | I191: 141470 | K191: 32.9 | L191: 4300 | M191: 141470 | N191: 0 | P191: 0 | U191: 27 | V191: 4300 | W191: 116100 | X191: 5.9 | Y191: 4300 | Z191: 25370
C192: 立上り 押え金物 | E192: アルミ製 | G192: 109.6 | H192: 1500 | I192: 164400 | K192: 109.6 | L192: 1500 | M192: 164400 | N192: 0 | P192: 0 | U192: 90 | V192: 1500 | W192: 135000 | X192: 19.6 | Y192: 1500 | Z192: 29400
C193: 同上廻り シーリング | G193: 28.6 | H193: 300 | I193: 8580 | K193: 28.6 | L193: 300 | M193: 8580 | N193: 0 | P193: 0 | U193: 9 | V193: 300 | W193: 2700 | X193: 19.6 | Y193: 300 | Z193: 5880
C194: 改修用ドレン | G194: 6 | H194: 12000 | I194: 72000 | K194: 6 | L194: 12000 | M194: 72000 | N194: 0 | P194: 0 | U194: 5 | V194: 12000 | W194: 60000 | X194: 1 | Y194: 12000 | Z194: 12000
C195: 脱気筒 | G195: 3 | H195: 8000 | I195: 24000 | K195: 3 | L195: 8000 | M195: 24000 | N195: 0 | P195: 0 | U195: 2 | V195: 8000 | W195: 16000 | X195: 1 | Y195: 8000 | Z195: 8000
G196: 0 | I196: 1223745 | K196: 0 | M196: 1223745 | N196: 0 | P196: 0 | V196: 小計 | W196: =IFERROR(SUM(W187:W195), "") -> 981040 | Y196: 小計 | Z196: =IFERROR(SUM(Z187:Z195), "") -> 242705 | AB196: =IFERROR(SUM(S196), "") -> 0 | AE196: =IFERROR(SUM(S196), "") -> 0
C197: 【室外機置場】 | E197: ウレタン塗膜防水 | G197: 0 | I197: 0 | K197: 0 | M197: 0 | N197: 0 | P197: 0 | V197: =IFERROR(SUM(S197), "") -> 0 | Y197: =IFERROR(SUM(S197), "") -> 0 | AB197: =IFERROR(SUM(S197), "") -> 0 | AE197: =IFERROR(SUM(S197), "") -> 0
C198: ケレン・清掃 | G198: 421.8 | H198: 23.00853485 | I198: 9705 | K198: 164.5 | L198: 22.37082067 | M198: 3680 | N198: 257.3 | O198: 23.41624563 | P198: 6025 | R198: 151.5 | S198: 20 | T198: =IFERROR(SUM(R198*S198), "") -> 3030 | U198: 13 | V198: 50 | W198: =IFERROR(SUM(U198*V198), "") -> 650 | Y198: =IFERROR(SUM(S198), "") -> 20 | AA198: 228 | AB198: =IFERROR(SUM(S198), "") -> 20 | AC198: =IFERROR(SUM(AA198*AB198), "") -> 4560 | AD198: 29.3 | AE198: 50 | AF198: =IFERROR(SUM(AD198*AE198), "") -> 1465
C199: 下地処理 | G199: 421.8 | H199: 52.0625889 | I199: 21960 | K199: 164.5 | L199: 47.38601824 | M199: 7795 | N199: 257.3 | O199: 55.05246794 | P199: =IFERROR(SUM(AC199+AF199), "") -> 14165 | R199: 151.5 | S199: 30 | T199: =IFERROR(SUM(R199*S199), "") -> 4545 | U199: 13 | V199: 250 | W199: 3250 | Y199: =IFERROR(SUM(S199), "") -> 30 | AA199: 228 | AB199: =IFERROR(SUM(S199), "") -> 30 | AC199: 6840 | AD199: 29.3 | AE199: 250 | AF199: 7325
C200: 平場 | G200: 33 | H200: 2400 | I200: =IFERROR(SUM(M200+P200), "") -> 79200 | K200: 10.5 | L200: 2400 | M200: 25200 | N200: 22.5 | O200: 2400 | P200: 54000 | U200: 10.5 | V200: 2400 | W200: 25200 | AC200: 0 | AD200: 22.5 | AE200: 2400 | AF200: 54000
... 159 more rows

Sheet 鉄部塗装見積
A1: 2010施工
A2: 2018施工
B3: 仮設工事
B4: 仮設足場
B5: 養生費
B6: 運搬費
B8: 東棟住宅 | H8: 東棟店舗 | L8: 西棟住宅 | P8: 西棟店舗
B9: b.鉄部塗装 | D9: ヶ所 | E9: ｍ換算 | F9: 単価 | G9: 金額 | H9: ヶ所 | I9: ｍ換算 | J9: 単価 | K9: 金額 | L9: ヶ所 | M9: ｍ換算 | N9: 単価 | O9: 金額 | P9: ヶ所 | Q9: ｍ換算 | R9: 単価 | S9: 金額
B10: SD1 | C10: 1500*2115 | D10: 6 | E10: 292 | F10: 850 | G10: =SUM(E10*F10) -> 248200 | L10: 20 | M10: 111.2 | N10: 850
B11: MB扉（両面・枠共） | C11: 750*1890 | D11: 34 | E11: 124.6 | F11: 2450 | G11: =SUM(E11*F11) -> 305270 | L11: 20 | M11: 73.3 | N11: 2450
B12: 〃 | C12: 900*1890 | D12: 3 | E12: 13 | F12: 2540 | G12: 33020
B13: 〃 | C13: 1200*1890 観音開き | D13: 10 | E13: 58.2 | F13: 2540 | G13: 147828
B14: 〃 | C14: 1480*1890 観音開き | D14: 17 | E14: 119.6 | F14: 2540 | G14: 303784
B15: トランク扉（両面・枠共） | C15: 780*1880 | D15: 20 | E15: 75.5 | F15: 2540 | G15: 191770 | L15: 20 | M15: 75.5 | N15: 2540
B16: 〃 | C16: 1550*1920 観音開き | D16: 60 | E16: 447.3 | F16: 2540 | G16: 1136142
B17: 〃 | C17: 1500*1920 観音開き | D17: 2 | E17: 14.5 | F17: 2540 | G17: 36830
B18: 門扉（両面） | C18: 1050*1100 | D18: 62 | E18: 155.3 | F18: 2700 | G18: 419310 | L18: 20 | M18: 50.1 | N18: 2700
B19: ゲート（門扉上） | D19: 62 | E19: 62 | F19: 1950 | G19: 120900 | L19: 20 | M19: 20 | N19: 1950
B20: ポーチ内格子（両面） | C20: 1200*1800 | D20: 48 | E20: 2380.8 | F20: 850 | G20: 2023680
B21: 〃 | C21: 800*1800 | D21: 12 | E21: 408 | F21: 850 | G21: 346800
B22: EPS扉（両面・枠共） | C22: 700*1900 | D22: 16 | E22: 75.5 | F22: 2540 | G22: 191770
B23: 放水口扉 | C23: 500*800 | D23: 10 | E23: 8.8 | F23: 2540 | G23: 22352
B24: 消火栓扉 | C24: 900*1400 | D24: 5 | E24: 6.9 | F24: 2700 | G24: 18630
B25: 集会室 ＭＢ扉 | C25: 400*300*200 150*800*100 | D25: 1 | E25: 0.38 | F25: 30000 | G25: 11400
B26: テラスベンチ | C26: 1500*400*400 | D26: 4 | E26: 8 | F26: 2700 | G26: 21600
B27: 4階 廊下 ポール | C27: 170Φ H2690 | D27: 4 | E27: 6.3 | F27: 2700 | G27: 17010
B28: 13階 階段Ａ扉（両面・枠共） | C28: 1270*2100 | D28: 1 | E28: 6.5 | F28: 2540 | G28: 16510
B29: 屋上 EV機械室扉（両面・枠共） | C29: 950*2200 | D29: 1 | E29: 5.2 | F29: 2540 | G29: 13208
B30: 屋上 機械室扉（両面・枠共） | C30: 900*1800 | D30: 1 | E30: 4.1 | F30: 2540 | G30: 10414
B31: 屋上 MB | C31: 420*400*200 | D31: 1 | E31: 0.5 | F31: 30000 | G31: 15000
B32: エントランス メールボックス室 扉 | C32: 950*2150 | D32: 1 | E32: 2.2 | F32: 2540 | G32: 5588
B33: 1階駐輪場 入口扉（ガラス入り） | C33: 980*2150 | D33: 1 | E33: 1.3 | F33: 2540 | G33: 3302
B34: 1階駐輪場 防火扉 | C34: 2300*2150 | D34: 1 | E34: 5.4 | F34: 2540 | G34: 13716
B35: 1階駐輪場 EPS扉 | C35: 680*1800 | D35: 1 | E35: 1.3 | F35: 2540 | G35: 3302
B36: 1階駐輪場 MDF扉 | C36: 960*2150 | D36: 1 | E36: 2.2 | F36: 2540 | G36: 5588
B37: 1階管理人室 扉（ガラス入り） | C37: 2650*2600 | D37: 1 | E37: 2.5 | F37: 2540 | G37: 6350
B38: 1階A階段 ポンプ室 扉 | C38: 980*2150 | D38: 1 | E38: 2.3 | F38: 2540 | G38: 5842
B39: 1階EV 枠+防火扉 | C39: 1850*2150 | D39: 2 | E39: 10.4 | F39: 2540 | G39: 26416
G40: =SUM(G10:G39) -> 5721532
B41: 東棟店舗
B42: １階店舗用メールＢＯＸ室ＥＰＳ扉 | C42: 970*1950 | D42: 1 | E42: 2.2 | F42: 2540 | G42: =SUM(E42*F42) -> 5588
B43: １階さんど亭ＥＶホール ＥＶ防火扉 | C43: 2300*2170 | D43: 1 | E43: 5.4 | F43: 2540 | G43: 13716
B44: １階さんど亭ＥＶホールＤＳ扉 | C44: 680*1470 | D44: 1 | E44: 1.2 | F44: 2540 | G44: 3048
B45: １階さんど亭横 ＳＤ扉 枠共 | C45: 830*2200 | D45: 1 | E45: 2.9 | F45: 2540 | G45: 7366
B46: 店舗間化粧鋼板 | C46: 200*3000 | D46: 6 | E46: 3.6 | F46: 2800 | G46: 10080
B47: 店舗E106・113シャッター（片面） | C47: 5100*2690 | D47: 2 | E47: 27.4 | F47: 2800 | G47: 76720
B48: 店舗E107・E104・E105・E110・E111シャッター | C48: 5020*2690 | D48: 3 | E48: 40.5 | F48: 2800 | G48: 113400
B49: 店舗E102・103シャッター（片面） | C49: 5200*2690 | D49: 1 | E49: 14 | F49: 2800 | G49: 39200
B50: 店舗E108・109シャッター（片面） | C50: 4620*2690 | D50: 1 | E50: 12.4 | F50: 2800 | G50: 34720
B51: 店舗E112シャッター（片面） | C51: 5630*2690 | D51: 1 | E51: 15.2 | F51: 2800 | G51: 42560
B52: 店舗E1113シャッター（片面） | C52: 1560*2690 | D52: 1 | E52: 4.2 | F52: 2800 | G52: 11760
B53: 店舗E1014シャッター（片面） | C53: 2330*2690 | D53: 1 | E53: 6.3 | F53: 2800 | G53: 17640
B54: 店舗E115シャッター（片面） | C54: 4350*2690 | D54: 1 | E54: 11.7 | F54: 2800 | G54: 32760
G55: =SUM(G42:G54) -> 408558
B56: 西棟住宅
B57: 玄関ドア（枠・見え掛り部） | C57: 850*1930 | D57: 20 | E57: 111.2 | F57: 850 | G57: =SUM(E57*F57) -> 94520
B58: MB扉（両面・枠共） | C58: 750*1890 | D58: 20 | E58: 73.3 | F58: 2540 | G58: 186182
B59: トランク扉（両面・枠共） | C59: 780*1880 | D59: 20 | E59: 75.5 | F59: 2540 | G59: 191770
B60: 門扉（両面） | C60: 1050*1100 | D60: 20 | E60: 50.1 | F60: 2700 | G60: 135270
B61: ゲート（門扉上） | D61: 20 | E61: 20 | F61: 1950 | G61: 39000
B62: ７階 階段Ｈ扉（両面・枠共） | C62: 1250*2050 | D62: 1 | E62: 7.1 | F62: 2540 | G62: 18034
B63: １階 三方枠 | C63: 710*2150 | D63: 1 | E63: 5 | F63: 850 | G63: 4250
B64: 階段室Ｊ扉（両面枠共） | C64: 1020*2380 | D64: 1 | E64: 5.9 | F64: 2540 | G64: 14986
B65: ２階 階段Ｈ扉（両面枠共） | C65: 1400*2990 | D65: 1 | E65: 10.1 | F65: 2540 | G65: 25654
B66: ２階 ＰＳ・ＥＰＳ扉（両面枠共） | C66: 700*1900 | D66: 2 | E66: 7.3 | F66: 2540 | G66: 18542
B67: ２階 消火栓扉 | C67: 950*1100 | D67: 1 | E67: 1.1 | F67: 2540 | G67: 2794
B68: ＥＶ機械室扉（両面枠共） | C68: 950*2200 | D68: 1 | E68: 5.5 | F68: 2540 | G68: 13970
B69: ＥＶ機械室前扉（両面枠共） | C69: 950*2200 | D69: 1 | E69: 5.5 | F69: 2540 | G69: 13970
G70: =SUM(G57:G69) -> 758942
B71: 西棟店舗
B74: 西棟店舗

Sheet 積立金設定
A1: （様式第５号） 修繕積立金の額の設定 | G1: 作成日／ 年 月 日 集会（管理組合総会）で議決された日／ 年 月 日
C2: （単位：特記がない場合は円）
A3: 【均等積立方式の場合】（既存のマンション）
A4: 項 目 | C4: 摘 要
A5: Ａ | B5: 計画期間の 推定修繕工事費の累計額（円） | C5: 334,916,159 | E5: ① | F5: 計画期間当初における修繕積立金の残高 （①＝(D／（J×12）)／Ｎ) （㎡当たり月当たり） | I5: 0
A6: Ｂ | B6: 計画期間の借入金の償還金（元本・利息） | E6: ② | F6: 計画期間全体における専用使用料収入等からの繰入額の総額 （②＝(（E＋F）／（J×12）)／Ｎ） （㎡当たり月当たり） | I6: 0
A7: Ｃ | B7: 支出 累計 （Ｃ＝Ａ） | E7: ③ | F7: 計画期間全体における修繕積立金の平均額（機械式駐車場分を含む） (③＝①＋②＋Ｏ) ※残高・基金、その他会計からの振替等含む （㎡当たり月当たり） | I7: 276
A8: Ｄ | B8: 修繕積立金の残高 | C8: 0
A9: Ｅ | B9: 計画期間の専用使用料、駐車場等の使用料からの繰入金 | C9: 0 | D9: 表 住戸タイプ別修繕積立金の額
A10: Ｆ | B10: 計画期間の修繕積立金の運用益 | C10: 0 | E10: 住戸タイプ | G10: 負担割合 | H10: 修繕積立金の額 （円／月・戸）
A11: Ｇ | B11: 計画期間に予定する一時金の合計額 | E11: Ａ | G11: 0.020741 | H11: 19.296
E12: Ｂ | G12: 0.022222 | H12: 20.674
A13: Ｈ | B13: 収入 累計 （Ｈ＝Ｄ＋Ｅ＋Ｆ） | C13: 0 | E13: Ｃ | G13: 0.023704 | H13: 22.052
A16: Ｉ | B16: 差額（円） （Ｉ＝Ｃ－Ｈ）
A20: Ｊ | B20: 計画期間(年） | C20: 30
A23: Ｋ | B23: 月当たりの負担額 （Ｉ／（Ｊ×12）） | C23: 930.323
A26: Ｌ | B26: 戸当たりの負担割合 | C26: 管理規約による
A29: Ｍ | B29: 修繕積立金の額（Ｍ＝Ｋ×Ｌ） （戸当たり月当たり） | C29: 表 住戸タイプ別修繕積立金の額
A34: Ｎ | B34: 専有面積の合計（㎡） | C34: 3375.00
A37: Ｏ | B37: 修繕積立金の額（Ｏ＝Ｋ／Ｎ） （㎡当たり月当たり） | C37: 276
A40: Ｐ | B40: 住戸数（戸） | C40: 45
A43: Ｑ | B43: 修繕積立金の額（Ｑ＝Ｋ／Ｐ）平均（戸当たり月当たり） | C43: 20.674
